Workbook

Sheet Index
A1: INDEX
A2: =Residuals!A1 -> Residuals and Averages
A3: =TA!A1 -> Table A - Summary of Demand Tariffs
A4: =TB!A1 -> Table B - Demand Tariffs
A5: ='TC & Fig D'!A1 -> Table C - Change in HH Demand Tariffs
A6: ='TE & Fig F'!A1 -> Table E - Embedded Export Tariff
A7: ='TG & Fig H'!A1 -> Table G - NHH Demand Tariff Changes
A8: =TI!A1 -> Table I - Changes to Average Tariffs
A9: =TJ!A1 -> Table J - Generation Wider Tariffs
A10: ='TK & Fig L'!A1 -> Table K - Generation Tariff Changes
A11: =TM!A1 -> Table M - Local Substation Tariffs
A12: =TN!A1 -> Table N - Onshore Local Circuit Tariffs
A13: =TO!A1 -> Table O - CMP203: Circuits subject to one-off charges
A14: =TP!A1 -> Table P - Offshore Local Tariffs
A15: =TQ!A1 -> Table Q - Contracted and Modelled TEC
A16: =TR!A1 -> Table R - Interconnectors
A17: =TS!A1 -> Table S - Allowed Revenues
A18: =TT!A1 -> Table T - Generation and Demand Revenue Proportions
A19: =TU!A1 -> Table U - Charging Bases
A20: =TV!A1 -> Table V - Residual Calculation
A21: =TW!A1 -> Table W - Small Generator Discount
A22: =TY!A1 -> Table Y - Demand Locational Tariffs
A23: =TZ!A1 -> Table Z - Breakdown of the Embedded Export Tariff
A24: =TAA!A1 -> Table AA - Demand Profiles
A25: =TBB!A1 -> Table BB - Annual Load Factors
A26: =TCC!A1 -> Table CC - Generic Annual Load Factors
A27: =TDD!A1 -> Table DD - Generation Contracted TEC Changes
A28: =TEE!A1 -> Table EE - Indicative National Grid Revenue Forecast
A29: =TFF!A1 -> Table FF - Offshore Revenues
A32: List of Figures:
A33: ='TC & Fig D'!H1 -> Figure D - Changes to gross HH demand tariffs
A34: ='TE & Fig F'!H1 -> Figure F - Changes to the EET
A35: ='TG & Fig H'!G1 -> Figure H - changes to NHH demand tariffs
A36: ='TK & Fig L'!A35 -> Figure L - Variation in generation zonal tariffs

Sheet Residuals
A1: Residuals and Averages | D1: Return to Index
A3: Residual | B3: 2019/20 June | C3: 2019/20 Draft | D3: Change since last forecast
A4: Generation | B4: =TI!B4 -> -3.613060365 | C4: =TI!C4 -> -3.537457 | D4: =C4-B4 -> 0.07560336517
A5: Demand | B5: =TA!C5 -> 51.697066 | C5: =TA!D5 -> 50.822881 | D5: =C5-B5 -> -0.874185
A7: Average Tariff | B7: =B3 -> 2019/20 June | C7: =C3 -> 2019/20 Draft | D7: =D3 -> Change since last forecast
A8: Generation (£/kW) | B8: =TI!B5 -> 5.611269638 | C8: =TI!C5 -> 5.503085067 | D8: =C8-B8 -> -0.1081845706 | E8: N.B. These generation average tariffs include local tariffs
A9: HH Demand (£/kW) | B9: =TA!C4 -> 50.745111 | C9: =TA!D4 -> 49.942761 | D9: =C9-B9 -> -0.80235
A10: NHH Demand (p/kWh) | B10: =TA!C13 -> 6.557159 | C10: =TA!D13 -> 6.456818 | D10: -0.100341
A11: Embedded Export (£/kW) | B11: =TA!C7 -> 14.306876 | C11: =TA!D7 -> 14.261808 | D11: -0.045068

Sheet TA
A1: Table A - Summary of Demand Tariffs | E1: Return to Index
B3: HH Tariffs | C3: =Residuals!B3 -> 2019/20 June | D3: =Residuals!C3 -> 2019/20 Draft | E3: Change
B4: Average Tariff (£/kW) | C4: 50.745111 | D4: 49.942761 | E4: =D4-C4 -> -0.80235
B5: Residual (£/kW) | C5: 51.697066 | D5: 50.822881 | E5: =D5-C5 -> -0.874185
B6: EET | C6: =C3 -> 2019/20 June | D6: =D3 -> 2019/20 Draft | E6: =E3 -> Change
B7: Average Tariff (£/kW) | C7: 14.306876 | D7: 14.261808 | E7: =D7-C7 -> -0.045068
B8: Phased residual (£/kW) | C8: 14.65 | D8: 14.65 | E8: =D8-C8 -> 0
B9: AGIC (£/kW) | C9: 3.327268 | D9: 3.327268 | E9: 0
B10: Embedded Export Volume (GW) | C10: 7.752808023 | D10: 7.752808023 | E10: 0
B11: Total Credit (£m) | C11: 110.9184626 | D11: 110.5690592 | E11: -0.3494034257
B12: NHH Tariffs | C12: =C6 -> 2019/20 June | D12: =D6 -> 2019/20 Draft | E12: =E6 -> Change
B13: Average (p/kWh) | C13: 6.557159 | D13: 6.456818 | E13: -0.100341

Sheet TB
A1: Table B - Demand Tariffs | E1: Return to Index
A3: Zone | B3: Zone Name | C3: HH Demand Tariff (£/kW) | D3: NHH Demand Tariff (p/kWh) | E3: Embedded Export Tariff (£/kW)
A4: 1 | B4: Northern Scotland | C4: 20.395103 | D4: 2.745374 | E4: 0
A5: 2 | B5: Southern Scotland | C5: 30.179224 | D5: 3.950803 | E5: 0
A6: 3 | B6: Northern | C6: 40.450515 | D6: 5.138436 | E6: 7.604902
A7: 4 | B7: North West | C7: 47.255413 | D7: 6.126991 | E7: 14.4098
A8: 5 | B8: Yorkshire | C8: 47.46315 | D8: 6.040941 | E8: 14.617537
A9: 6 | B9: N Wales & Mersey | C9: 48.7692 | D9: 6.148322 | E9: 15.923587
A10: 7 | B10: East Midlands | C10: 50.863602 | D10: 6.663329 | E10: 18.017989
A11: 8 | B11: Midlands | C11: 52.351899 | D11: 6.90224 | E11: 19.506286
A12: 9 | B12: Eastern | C12: 53.212159 | D12: 7.42182 | E12: 20.366546
A13: 10 | B13: South Wales | C13: 49.149475 | D13: 5.797504 | E13: 16.303862
A14: 11 | B14: South East | C14: 55.534682 | D14: 7.87088 | E14: 22.68907
A15: 12 | B15: London | C15: 58.59962 | D15: 6.215107 | E15: 25.754007
A16: 13 | B16: Southern | C16: 56.762613 | D16: 7.51085 | E16: 23.917
A17: 14 | B17: South Western | C17: 55.110511 | D17: 7.692623 | E17: 22.264898
A19: Residual charge for demand: | C19: 50.82288097

Sheet TC & Fig D
A1: Table C - Change in HH Demand Tariffs | F1: Return to Index | H1: Figure D - Changes to gross HH demand tariffs
A3: Zone | B3: Zone Name | C3: =TA!C3&" (£/kW)" -> 2019/20 June (£/kW) | D3: =TA!D3&" (£/kW)" -> 2019/20 Draft (£/kW) | E3: Change (£/kW) | F3: Change in Residual (£/kW)
A4: 1 | B4: Northern Scotland | C4: 21.117249 | D4: =F21 -> 20.395103 | E4: =D4-C4 -> -0.722146 | F4: =Residuals!C5-Residuals!B5 -> -0.874185
A5: 2 | B5: Southern Scotland | C5: 28.797132 | D5: =F22 -> 30.179224 | E5: =D5-C5 -> 1.382092 | F5: =F4 -> -0.874185
A6: 3 | B6: Northern | C6: 41.292129 | D6: 40.450515 | E6: -0.841614 | F6: =F5 -> -0.874185
A7: 4 | B7: North West | C7: 48.128953 | D7: 47.255413 | E7: -0.87354 | F7: -0.874185
A8: 5 | B8: Yorkshire | C8: 48.421349 | D8: 47.46315 | E8: -0.958199 | F8: -0.874185
A9: 6 | B9: N Wales & Mersey | C9: 49.711398 | D9: 48.7692 | E9: -0.942198 | F9: -0.874185
A10: 7 | B10: East Midlands | C10: 51.861094 | D10: 50.863602 | E10: -0.997492 | F10: -0.874185
A11: 8 | B11: Midlands | C11: 53.158467 | D11: 52.351899 | E11: -0.806568 | F11: -0.874185
A12: 9 | B12: Eastern | C12: 53.903967 | D12: 53.212159 | E12: -0.691808 | F12: -0.874185
A13: 10 | B13: South Wales | C13: 50.052639 | D13: 49.149475 | E13: -0.903164 | F13: -0.874185
A14: 11 | B14: South East | C14: 56.648128 | D14: 55.534682 | E14: -1.113446 | F14: -0.874185
A15: 12 | B15: London | C15: 59.762093 | D15: 58.59962 | E15: -1.162473 | F15: -0.874185
A16: 13 | B16: Southern | C16: 57.828962 | D16: 56.762613 | E16: -1.066349 | F16: -0.874185
A17: 14 | B17: South Western | C17: 56.141034 | D17: 55.110511 | E17: -1.030523 | F17: -0.874185
A20: Zone | B20: Peak (£/kW) | C20: Year Round (£/kW) | D20: Residual £/kW | E20: Small Gen Discount (£/kW) | F20: =D3 -> 2019/20 Draft (£/kW)
A21: 1 | B21: =TY!D7 -> -1.523975081 | C21: =TY!E7 -> -28.90380328 | D21: =TB!C19 -> 50.82288097 | E21: 0 | F21: =ROUND(SUM(B21+C21+D21+E21),6) -> 20.395103
A22: 2 | B22: =TY!D8 -> -1.800825971 | C22: =TY!E8 -> -18.84283082 | D22: =D21 -> 50.82288097 | E22: 0 | F22: =ROUND(SUM(B22+C22+D22+E22),6) -> 30.179224
A23: 3 | B23: =TY!D9 -> -3.900602117 | C23: =TY!E9 -> -6.471763511 | D23: =D22 -> 50.82288097 | E23: 0 | F23: 40.450515
A24: 4 | B24: =TY!D10 -> -1.432272624 | C24: =TY!E10 -> -2.135194997 | D24: 50.82288097 | E24: 0 | F24: 47.255413
A25: 5 | B25: =TY!D11 -> -3.268569461 | C25: =TY!E11 -> -0.09116157398 | D25: 50.82288097 | E25: 0 | F25: 47.46315
A26: 6 | B26: =TY!D12 -> -2.505478975 | C26: =TY!E12 -> 0.4517980954 | D26: 50.82288097 | E26: 0 | F26: 48.7692
A27: 7 | B27: =TY!D13 -> -2.525628727 | C27: =TY!E13 -> 2.566349785 | D27: 50.82288097 | E27: 0 | F27: 50.863602
A28: 8 | B28: =TY!D14 -> -1.718495482 | C28: =TY!E14 -> 3.247513096 | D28: 50.82288097 | E28: 0 | F28: 52.351899
A29: 9 | B29: =TY!D15 -> 1.367046019 | C29: =TY!E15 -> 1.022232301 | D29: 50.82288097 | E29: 0 | F29: 53.212159
A30: 10 | B30: =TY!D16 -> -5.996326921 | C30: =TY!E16 -> 4.322920614 | D30: 50.82288097 | E30: 0 | F30: 49.149475
A31: 11 | B31: =TY!D17 -> 3.956928824 | C31: =TY!E17 -> 0.7548726981 | D31: 50.82288097 | E31: 0 | F31: 55.534682
A32: 12 | B32: =TY!D18 -> 5.735162503 | C32: =TY!E18 -> 2.041576837 | D32: 50.82288097 | E32: 0 | F32: 58.59962
A33: 13 | B33: =TY!D19 -> 1.918497799 | C33: =TY!E19 -> 4.021234584 | D33: 50.82288097 | E33: 0 | F33: 56.762613
A34: 14 | B34: =TY!D20 -> -0.6802377167 | C34: =TY!E20 -> 4.967867388 | D34: 50.82288097 | E34: 0 | F34: 55.110511

Sheet TE & Fig F
A1: Table E - Embedded Export Tariff | E1: Return to Index | H1: Figure F - Changes to the EET
A4: Zone | B4: Zone Name | C4: ='TC & Fig D'!C3 -> 2019/20 June (£/kW) | D4: ='TC & Fig D'!D3 -> 2019/20 Draft (£/kW) | E4: Change (£/kW)
A5: 1 | B5: Northern Scotland | C5: =MAX(0,TZ!C5+TZ!D5+TZ!E5) -> 0 | D5: =E21 -> 0 | E5: =D5-C5 -> 0
A6: 2 | B6: Southern Scotland | C6: =MAX(0,TZ!C6+TZ!D6+TZ!E6) -> 0 | D6: =E22 -> 0 | E6: =D6-C6 -> 0
A7: 3 | B7: Northern | C7: =MAX(0,TZ!C7+TZ!D7+TZ!E7) -> 7.572331 | D7: 7.604902372 | E7: 0.03257137188
A8: 4 | B8: North West | C8: =MAX(0,TZ!C8+TZ!D8+TZ!E8) -> 14.409155 | D8: 14.40980038 | E8: 0.0006453786366
A9: 5 | B9: Yorkshire | C9: =MAX(0,TZ!C9+TZ!D9+TZ!E9) -> 14.701551 | D9: 14.61753696 | E9: -0.08401403543
A10: 6 | B10: N Wales & Mersey | C10: =MAX(0,TZ!C10+TZ!D10+TZ!E10) -> 15.9916 | D10: 15.92358712 | E10: -0.06801287927
A11: 7 | B11: East Midlands | C11: =MAX(0,TZ!C11+TZ!D11+TZ!E11) -> 18.141296 | D11: 18.01798906 | E11: -0.1233069412
A12: 8 | B12: Midlands | C12: =MAX(0,TZ!C12+TZ!D12+TZ!E12) -> 19.438669 | D12: 19.50628561 | E12: 0.06761661376
A13: 9 | B13: Eastern | C13: =MAX(0,TZ!C13+TZ!D13+TZ!E13) -> 20.184169 | D13: 20.36654632 | E13: 0.1823773195
A14: 10 | B14: South Wales | C14: =MAX(0,TZ!C14+TZ!D14+TZ!E14) -> 16.332841 | D14: 16.30386169 | E14: -0.02897930707
A15: 11 | B15: South East | C15: =MAX(0,TZ!C15+TZ!D15+TZ!E15) -> 22.92833 | D15: 22.68906952 | E15: -0.2392604774
A16: 12 | B16: London | C16: =MAX(0,TZ!C16+TZ!D16+TZ!E16) -> 26.042296 | D16: 25.75400734 | E16: -0.2882886599
A17: 13 | B17: Southern | C17: =MAX(0,TZ!C17+TZ!D17+TZ!E17) -> 24.109165 | D17: 23.91700038 | E17: -0.1921646165
A18: 14 | B18: South Western | C18: =MAX(0,TZ!C18+TZ!D18+TZ!E18) -> 22.421236 | D18: 22.26489767 | E18: -0.156338329
A20: Zone | B20: EET Locational £/kW | C20: AGIC £/kW | D20: 2019/20 Phased Residual £/kW | E20: Final EET Tariff £/kW | F20: EET Revenue £m
A21: 1 | B21: =TZ!F5 -> -30.42777836 | C21: =TZ!G5 -> 3.327268 | D21: =TZ!H5 -> 14.65 | E21: =MAX(0,TZ!F5+TZ!G5+TZ!H5) -> 0 | F21: 0
A22: 2 | B22: =TZ!F6 -> -20.64365679 | C22: =TZ!G6 -> 3.327268 | D22: =TZ!H6 -> 14.65 | E22: =MAX(0,TZ!F6+TZ!G6+TZ!H6) -> 0 | F22: 0
A23: 3 | B23: =TZ!F7 -> -10.37236563 | C23: =TZ!G7 -> 3.327268 | D23: =TZ!H7 -> 14.65 | E23: =MAX(0,TZ!F7+TZ!G7+TZ!H7) -> 7.604902372 | F23: 3.33588436
A24: 4 | B24: =TZ!F8 -> -3.567467621 | C24: =TZ!G8 -> 3.327268 | D24: =TZ!H8 -> 14.65 | E24: =MAX(0,TZ!F8+TZ!G8+TZ!H8) -> 14.40980038 | F24: 5.909747434
A25: 5 | B25: =TZ!F9 -> -3.359731035 | C25: =TZ!G9 -> 3.327268 | D25: =TZ!H9 -> 14.65 | E25: =MAX(0,TZ!F9+TZ!G9+TZ!H9) -> 14.61753696 | F25: 11.80415426
A26: 6 | B26: =TZ!F10 -> -2.053680879 | C26: =TZ!G10 -> 3.327268 | D26: =TZ!H10 -> 14.65 | E26: =MAX(0,TZ!F10+TZ!G10+TZ!H10) -> 15.92358712 | F26: 8.764967188
A27: 7 | B27: =TZ!F11 -> 0.04072105876 | C27: =TZ!G11 -> 3.327268 | D27: =TZ!H11 -> 14.65 | E27: =MAX(0,TZ!F11+TZ!G11+TZ!H11) -> 18.01798906 | F27: 11.51697966
A28: 8 | B28: =TZ!F12 -> 1.529017614 | C28: =TZ!G12 -> 3.327268 | D28: =TZ!H12 -> 14.65 | E28: =MAX(0,TZ!F12+TZ!G12+TZ!H12) -> 19.50628561 | F28: 6.536400152
A29: 9 | B29: =TZ!F13 -> 2.389278319 | C29: =TZ!G13 -> 3.327268 | D29: =TZ!H13 -> 14.65 | E29: =MAX(0,TZ!F13+TZ!G13+TZ!H13) -> 20.36654632 | F29: 16.40917327
A30: 10 | B30: =TZ!F14 -> -1.673406307 | C30: =TZ!G14 -> 3.327268 | D30: =TZ!H14 -> 14.65 | E30: =MAX(0,TZ!F14+TZ!G14+TZ!H14) -> 16.30386169 | F30: 8.310087544
A31: 11 | B31: =TZ!F15 -> 4.711801523 | C31: =TZ!G15 -> 3.327268 | D31: =TZ!H15 -> 14.65 | E31: =MAX(0,TZ!F15+TZ!G15+TZ!H15) -> 22.68906952 | F31: 9.323473647
A32: 12 | B32: =TZ!F16 -> 7.77673934 | C32: =TZ!G16 -> 3.327268 | D32: =TZ!H16 -> 14.65 | E32: =MAX(0,TZ!F16+TZ!G16+TZ!H16) -> 25.75400734 | F32: 4.399584083
A33: 13 | B33: =TZ!F17 -> 5.939732383 | C33: =TZ!G17 -> 3.327268 | D33: =TZ!H17 -> 14.65 | E33: =MAX(0,TZ!F17+TZ!G17+TZ!H17) -> 23.91700038 | F33: 16.56668097
A34: 14 | B34: =TZ!F18 -> 4.287629671 | C34: =TZ!G18 -> 3.327268 | D34: =TZ!H18 -> 14.65 | E34: =MAX(0,TZ!F18+TZ!G18+TZ!H18) -> 22.26489767 | F34: 7.691926631

Sheet TG & Fig H
A1: Table G - NHH Demand Tariff Changes | D1: Return to Index | G1: Figure H - changes to NHH demand tariffs
A3: Zone | B3: Zone Name | C3: =Residuals!B3&" (p/kWh)" -> 2019/20 June (p/kWh) | D3: =Residuals!C3&" (p/kWh)" -> 2019/20 Draft (p/kWh) | E3: Change (p/kWh)
A4: 1 | B4: Northern Scotland | C4: 2.842582 | D4: =TB!D4 -> 2.745374 | E4: =D4-C4 -> -0.097208
A5: 2 | B5: Southern Scotland | C5: 3.769871 | D5: =TB!D5 -> 3.950803 | E5: =D5-C5 -> 0.180932
A6: 3 | B6: Northern | C6: 5.245346 | D6: =TB!D6 -> 5.138436 | E6: -0.10691
A7: 4 | B7: North West | C7: 6.240251 | D7: =TB!D7 -> 6.126991 | E7: -0.11326
A8: 5 | B8: Yorkshire | C8: 6.162897 | D8: =TB!D8 -> 6.040941 | E8: -0.121956
A9: 6 | B9: N Wales & Mersey | C9: 6.267104 | D9: =TB!D9 -> 6.148322 | E9: -0.118782
A10: 7 | B10: East Midlands | C10: 6.794004 | D10: =TB!D10 -> 6.663329 | E10: -0.130675
A11: 8 | B11: Midlands | C11: 7.008581 | D11: =TB!D11 -> 6.90224 | E11: -0.106341
A12: 9 | B12: Eastern | C12: 7.51831 | D12: =TB!D12 -> 7.42182 | E12: -0.09649
A13: 10 | B13: South Wales | C13: 5.904038 | D13: =TB!D13 -> 5.797504 | E13: -0.106534
A14: 11 | B14: South East | C14: 8.028688 | D14: =TB!D14 -> 7.87088 | E14: -0.157808
A15: 12 | B15: London | C15: 6.3384 | D15: =TB!D15 -> 6.215107 | E15: -0.123293
A16: 13 | B16: Southern | C16: 7.65195 | D16: =TB!D16 -> 7.51085 | E16: -0.1411
A17: 14 | B17: South Western | C17: 7.836469 | D17: =TB!D17 -> 7.692623 | E17: -0.143846

Sheet TI
A1: Table I - Changes to Average Tariffs | F1: Return to Index
A3: Generation Tariffs (£/kW) | B3: =Residuals!B3 -> 2019/20 June | C3: =Residuals!C3 -> 2019/20 Draft | D3: Change since last forecast
A4: Residual | B4: -3.613060365 | C4: =TJ!F5 -> -3.537457 | D4: =C4-B4 -> 0.07560336517
A5: Average Generation Tariff | B5: 5.611269638 | C5: 5.503085067 | D5: =C5-B5 -> -0.1081845706 | E5: N.B. These generation average tariffs include local tariffs

Sheet TJ
A1: Table J - Generation Wider Tariffs | I1: Return to Index
G2: Example tariffs for a generator of each technology type:
C3: System Peak | D3: Shared Year Round | E3: Not Shared Year Round | F3: Residual | G3: Conventional Carbon 80% | H3: Conventional Low Carbon 80% | I3: Intermittent 40%
A4: Zone | B4: Zone Name | C4: Tariff (£/kW) | D4: Tariff (£/kW) | E4: Tariff (£/kW) | F4: Tariff (£/kW) | G4: Tariff (£/kW) | H4: Tariff (£/kW) | I4: Tariff (£/kW)
A5: 1 | B5: North Scotland | C5: 2.280543 | D5: 17.691649 | E5: 15.483854 | F5: -3.537457 | G5: 25.2834884 | H5: 28.3802592 | I5: 19.0230566
A6: 2 | B6: East Aberdeenshire | C6: 4.39322 | D6: 9.220124 | E6: 15.483854 | F6: -3.537457 | G6: 20.6189454 | H6: 23.7157162 | I6: 15.6344466
A7: 3 | B7: Western Highlands | C7: 1.436393 | D7: 18.259144 | E7: 15.522353 | F7: -3.537457 | G7: 24.9241336 | H7: 28.0286042 | I7: 19.2885536
A8: 4 | B8: Skye and Lochalsh | C8: -2.864332 | D8: 18.259144 | E8: 17.231378 | F8: -3.537457 | G8: 21.9906286 | H8: 25.4369042 | I8: 20.9975786
A9: 5 | B9: Eastern Grampian and Tayside | C9: 2.043322 | D9: 15.184507 | E9: 14.767083 | F9: -3.537457 | G9: 22.467137 | H9: 25.4205536 | I9: 17.3034288
A10: 6 | B10: Central Grampian | C10: 2.967375 | D10: 14.208477 | E10: 14.345112 | F10: -3.537457 | G10: 22.2727892 | H10: 25.1418116 | I10: 16.4910458
A11: 7 | B11: Argyll | C11: 2.973002 | D11: 11.114505 | E11: 24.583506 | F11: -3.537457 | G11: 27.9939538 | H11: 32.910655 | I11: 25.491851
A12: 8 | B12: The Trossachs | C12: 2.985196 | D12: 11.114505 | E12: 12.941107 | F12: -3.537457 | G12: 18.6922286 | H12: 21.28045 | I12: 13.849452
A13: 9 | B13: Stirlingshire and Fife | C13: 1.812251 | D13: 8.514562 | E13: 12.163013 | F13: -3.537457 | G13: 14.816854 | H13: 17.2494566 | I13: 12.0313808
A14: 10 | B14: South West Scotlands | C14: 3.140376 | D14: 9.845323 | E14: 12.498708 | F14: -3.537457 | G14: 17.4781438 | H14: 19.9778854 | I14: 12.8993802
A15: 11 | B15: Lothian and Borders | C15: 3.851953 | D15: 9.845323 | E15: 6.686795 | F15: -3.537457 | G15: 13.5401904 | H15: 14.8775494 | I15: 7.0874672
A16: 12 | B16: Solway and Cheviot | C16: 2.070632 | D16: 5.497614 | E16: 7.25401 | F16: -3.537457 | G16: 8.7344742 | H16: 10.1852762 | I16: 5.9155986
A17: 13 | B17: North East England | C17: 4.30659 | D17: 2.912948 | E17: 3.907136 | F17: -3.537457 | G17: 6.2252002 | H17: 7.0066274 | I17: 1.5348582
A18: 14 | B18: North Lancashire and The Lakes | C18: 1.826522 | D18: 2.912948 | E18: 2.524088 | F18: -3.537457 | G18: 2.6386938 | H18: 3.1435114 | I18: 0.1518102
A19: 15 | B19: South Lancashire, Yorkshire and Humber | C19: 4.792817 | D19: 0.495644 | E19: 0.145609 | F19: -3.537457 | G19: 1.7683624 | H19: 1.7974842 | I19: -3.1935904
A20: 16 | B20: North Midlands and North Wales | C20: 4.254582 | D20: -1.092088 | E20: 0 | F20: -3.537457 | G20: -0.1565454 | H20: -0.1565454 | I20: -3.9742922
A21: 17 | B21: South Lincolnshire and North Norfolk | C21: 2.412017 | D21: -0.604939 | E21: 0 | F21: -3.537457 | G21: -1.6093912 | H21: -1.6093912 | I21: -3.7794326
A22: 18 | B22: Mid Wales and The Midlands | C22: 1.511077 | D22: -0.155294 | E22: 0 | F22: -3.537457 | G22: -2.1506152 | H22: -2.1506152 | I22: -3.5995746
A23: 19 | B23: Anglesey and Snowdon | C23: 4.77368 | D23: -1.031192 | E23: 0 | F23: -3.537457 | G23: 0.4112694 | H23: 0.4112694 | I23: -3.9499338
A24: 20 | B24: Pembrokeshire | C24: 9.029701 | D24: -4.395975 | E24: 0 | F24: -3.537457 | G24: 1.975464 | H24: 1.975464 | I24: -5.295847
A25: 21 | B25: South Wales & Gloucester | C25: 5.948658 | D25: -4.288358 | E25: 0 | F25: -3.537457 | G25: -1.0194854 | H25: -1.0194854 | I25: -5.2528002
A26: 22 | B26: Cotswold | C26: 2.744945 | D26: 2.559043 | E26: -6.759012 | F26: -3.537457 | G26: -4.1524872 | H26: -5.5042896 | I26: -9.2728518
A27: 23 | B27: Central London | C27: -5.853432 | D27: 2.559043 | E27: -6.745145 | F27: -3.537457 | G27: -12.7397706 | H27: -14.0887996 | I27: -9.2589848
A28: 24 | B28: Essex and Kent | C28: -3.866906 | D28: 2.559043 | E28: 0 | F28: -3.537457 | G28: -5.3571286 | H28: -5.3571286 | I28: -2.5138398
A29: 25 | B29: Oxfordshire, Surrey and Sussex | C29: -1.553471 | D29: -2.585615 | E29: 0 | F29: -3.537457 | G29: -7.15942 | H29: -7.15942 | I29: -4.571703
A30: 26 | B30: Somerset and Wessex | C30: -1.644081 | D30: -2.876601 | E30: 0 | F30: -3.537457 | G30: -7.4828188 | H30: -7.4828188 | I30: -4.6880974
A31: 27 | B31: West Devon and Cornwall | C31: -0.094512 | D31: -5.153912 | E31: 0 | F31: -3.537457 | G31: -7.7550986 | H31: -7.7550986 | I31: -5.5990218

Sheet TK & Fig L
A1: Table K - Generation Tariff Changes | L1: Return to Index
A4: Wider Generation Tariffs (£/kW)
C5: Conventional Carbon 80% | F5: Conventional Low Carbon 80% | I5: Intermittent 40% | L5: Change in Residual (£/kW)
A6: Zone | B6: Zone Name | C6: =Residuals!B3&" (£/kW)" -> 2019/20 June (£/kW) | D6: =Residuals!C3&" (£/kW)" -> 2019/20 Draft (£/kW) | E6: Change (£/kW) | F6: =C6 -> 2019/20 June (£/kW) | G6: =D6 -> 2019/20 Draft (£/kW) | H6: Change (£/kW) | I6: =F6 -> 2019/20 June (£/kW) | J6: =G6 -> 2019/20 Draft (£/kW) | K6: Change (£/kW)
A7: 1 | B7: North Scotland | C7: 26.3457076 | D7: =TJ!G5 -> 25.2834884 | E7: =D7-C7 -> -1.0622192 | F7: 29.6038204 | G7: =TJ!H5 -> 28.3802592 | H7: =G7-F7 -> -1.2235612 | I7: 19.8239232 | J7: =TJ!I5 -> 19.0230566 | K7: =J7-I7 -> -0.8008666 | L7: =TI!D4 -> 0.07560336517
A8: 2 | B8: East Aberdeenshire | C8: 22.587712 | D8: =TJ!G6 -> 20.6189454 | E8: =D8-C8 -> -1.9687666 | F8: 25.8458248 | G8: =TJ!H6 -> 23.7157162 | H8: =G8-F8 -> -2.1301086 | I8: 16.8334544 | J8: =TJ!I6 -> 15.6344466 | K8: =J8-I8 -> -1.1990078 | L8: =L7 -> 0.07560336517
A9: 3 | B9: Western Highlands | C9: 25.9088578 | D9: =TJ!G7 -> 24.9241336 | E9: -0.9847242 | F9: 29.1690422 | G9: =TJ!H7 -> 28.0286042 | H9: -1.140438 | I9: 19.8953496 | J9: =TJ!I7 -> 19.2885536 | K9: -0.606796 | L9: =L8 -> 0.07560336517
A10: 4 | B10: Skye and Lochalsh | C10: 19.699681 | D10: =TJ!G8 -> 21.9906286 | E10: 2.2909476 | F10: 22.9368472 | G10: =TJ!H8 -> 25.4369042 | H10: 2.500057 | I10: 19.7802586 | J10: =TJ!I8 -> 20.9975786 | K10: 1.21732 | L10: 0.07560336517
A11: 5 | B11: Eastern Grampian and Tayside | C11: 24.4143312 | D11: =TJ!G9 -> 22.467137 | E11: -1.9471942 | F11: 27.5533676 | G11: =TJ!H9 -> 25.4205536 | H11: -2.132814 | I11: 18.3032588 | J11: =TJ!I9 -> 17.3034288 | K11: -0.99983 | L11: 0.07560336517
A12: 6 | B12: Central Grampian | C12: 24.2753022 | D12: =TJ!G10 -> 22.2727892 | E12: -2.002513 | F12: 27.3529472 | G12: =TJ!H10 -> 25.1418116 | H12: -2.2111356 | I12: 17.7123046 | J12: =TJ!I10 -> 16.4910458 | K12: -1.2212588 | L12: 0.07560336517
A13: 7 | B13: Argyll | C13: 29.220503 | D13: =TJ!G11 -> 27.9939538 | E13: -1.2265492 | F13: 34.24564 | G13: =TJ!H11 -> 32.910655 | H13: -1.334985 | I13: 26.219877 | J13: =TJ!I11 -> 25.491851 | K13: -0.728026 | L13: 0.07560336517
A14: 8 | B14: The Trossachs | C14: 20.6016886 | D14: =TJ!G12 -> 18.6922286 | E14: -1.90946 | F14: 23.400278 | G14: =TJ!H12 -> 21.28045 | H14: -2.119828 | I14: 15.087139 | J14: =TJ!I12 -> 13.849452 | K14: -1.237687 | L14: 0.07560336517
A15: 9 | B15: Stirlingshire and Fife | C15: 16.4656248 | D15: =TJ!G13 -> 14.816854 | E15: -1.6487708 | F15: 19.0966674 | G15: =TJ!H13 -> 17.2494566 | H15: -1.8472108 | I15: 13.1297242 | J15: =TJ!I13 -> 12.0313808 | K15: -1.0983434 | L15: 0.07560336517
A16: 10 | B16: South West Scotlands | C16: 17.0794962 | D16: =TJ!G14 -> 17.4781438 | E16: 0.3986476 | F16: 19.7388026 | G16: =TJ!H14 -> 19.9778854 | H16: 0.2390828 | I16: 13.4951288 | J16: =TJ!I14 -> 12.8993802 | K16: -0.5957486 | L16: 0.07560336517
A17: 11 | B17: Lothian and Borders | C17: 13.610148 | D17: =TJ!G15 -> 13.5401904 | E17: -0.0699576 | F17: 15.0977156 | G17: =TJ!H15 -> 14.8775494 | H17: -0.2201662 | I17: 7.6364348 | J17: =TJ!I15 -> 7.0874672 | K17: -0.5489676 | L17: 0.07560336517
A18: 12 | B18: Solway and Cheviot | C18: 8.6718278 | D18: =TJ!G16 -> 8.7344742 | E18: 0.0626464 | F18: 10.1728298 | G18: =TJ!H16 -> 10.1852762 | H18: 0.0124464 | I18: 6.0496264 | J18: =TJ!I16 -> 5.9155986 | K18: -0.1340278 | L18: 0.07560336517
A19: 13 | B19: North East England | C19: 5.8394792 | D19: =TJ!G17 -> 6.2252002 | E19: 0.385721 | F19: 6.628095 | G19: =TJ!H17 -> 7.0066274 | H19: 0.3785324 | I19: 1.536079 | J19: =TJ!I17 -> 1.5348582 | K19: -0.0012208 | L19: 0.07560336517
A20: 14 | B20: North Lancashire and The Lakes | C20: 2.5158546 | D20: =TJ!G18 -> 2.6386938 | E20: 0.1228392 | F20: 3.04732 | G20: =TJ!H18 -> 3.1435114 | H20: 0.0961914 | I20: 0.250327 | J20: =TJ!I18 -> 0.1518102 | K20: -0.0985168 | L20: 0.07560336517
A21: 15 | B21: South Lancashire, Yorkshire and Humber | C21: 1.5845178 | D21: =TJ!G19 -> 1.7683624 | E21: 0.1838446 | F21: 1.6080306 | G21: =TJ!H19 -> 1.7974842 | H21: 0.1894536 | I21: -3.1822172 | J21: =TJ!I19 -> -3.1935904 | K21: -0.0113732 | L21: 0.07560336517
A22: 16 | B22: North Midlands and North Wales | C22: -0.33477 | D22: =TJ!G20 -> -0.1565454 | E22: 0.1782246 | F22: -0.33477 | G22: =TJ!H20 -> -0.1565454 | H22: 0.1782246 | I22: -3.945256 | J22: =TJ!I20 -> -3.9742922 | K22: -0.0290362 | L22: 0.07560336517
A23: 17 | B23: South Lincolnshire and North Norfolk | C23: -1.8730268 | D23: =TJ!G21 -> -1.6093912 | E23: 0.2636356 | F23: -1.8730268 | G23: =TJ!H21 -> -1.6093912 | H23: 0.2636356 | I23: -3.8027784 | J23: =TJ!I21 -> -3.7794326 | K23: 0.0233458 | L23: 0.07560336517
A24: 18 | B24: Mid Wales and The Midlands | C24: -2.598338 | D24: =TJ!G22 -> -2.1506152 | E24: 0.4477228 | F24: -2.598338 | G24: =TJ!H22 -> -2.1506152 | H24: 0.4477228 | I24: -3.710072 | J24: =TJ!I22 -> -3.5995746 | K24: 0.1104974 | L24: 0.07560336517
A25: 19 | B25: Anglesey and Snowdon | C25: 0.3066702 | D25: =TJ!G23 -> 0.4112694 | E25: 0.1045992 | F25: 0.3066702 | G25: =TJ!H23 -> 0.4112694 | H25: 0.1045992 | I25: -3.8732504 | J25: =TJ!I23 -> -3.9499338 | K25: -0.0766834 | L25: 0.07560336517
A26: 20 | B26: Pembrokeshire | C26: 1.9604012 | D26: =TJ!G24 -> 1.975464 | E26: 0.0150628 | F26: 1.9604012 | G26: =TJ!H24 -> 1.975464 | H26: 0.0150628 | I26: -5.4199004 | J26: =TJ!I24 -> -5.295847 | K26: 0.1240534 | L26: 0.07560336517
A27: 21 | B27: South Wales & Gloucester | C27: -1.0194344 | D27: =TJ!G25 -> -1.0194854 | E27: -5.1e-05 | F27: -1.0194344 | G27: =TJ!H25 -> -1.0194854 | H27: -5.1e-05 | I27: -5.4092092 | J27: =TJ!I25 -> -5.2528002 | K27: 0.156409 | L27: 0.07560336517
A28: 22 | B28: Cotswold | C28: -4.1458 | D28: =TJ!G26 -> -4.1524872 | E28: -0.0066872 | F28: -5.4909582 | G28: =TJ!H26 -> -5.5042896 | H28: -0.0133314 | I28: -9.4353866 | J28: =TJ!I26 -> -9.2728518 | K28: 0.1625348 | L28: 0.07560336517
A29: 23 | B29: Central London | C29: -12.861636 | D29: =TJ!G27 -> -12.7397706 | E29: 0.1218654 | F29: -14.1842472 | G29: =TJ!H27 -> -14.0887996 | H29: 0.0954476 | I29: -9.3226516 | J29: =TJ!I27 -> -9.2589848 | K29: 0.0636668 | L29: 0.07560336517
A30: 24 | B30: Essex and Kent | C30: -5.8957612 | D30: =TJ!G28 -> -5.3571286 | E30: 0.5386326 | F30: -5.8957612 | G30: =TJ!H28 -> -5.3571286 | H30: 0.5386326 | I30: -2.7095956 | J30: =TJ!I28 -> -2.5138398 | K30: 0.1957558 | L30: 0.07560336517
A31: 25 | B31: Oxfordshire, Surrey and Sussex | C31: -7.541737 | D31: =TJ!G29 -> -7.15942 | E31: 0.382317 | F31: -7.541737 | G31: =TJ!H29 -> -7.15942 | H31: 0.382317 | I31: -4.793508 | J31: =TJ!I29 -> -4.571703 | K31: 0.221805 | L31: 0.07560336517
A32: 26 | B32: Somerset and Wessex | C32: -8.3119094 | D32: =TJ!G30 -> -7.4828188 | E32: 0.8290906 | F32: -8.3119094 | G32: =TJ!H30 -> -7.4828188 | H32: 0.8290906 | I32: -5.2586192 | J32: =TJ!I30 -> -4.6880974 | K32: 0.5705218 | L32: 0.07560336517
A33: 27 | B33: West Devon and Cornwall | C33: -8.0518182 | D33: =TJ!G31 -> -7.7550986 | E33: 0.2967196 | F33: -8.0518182 | G33: =TJ!H31 -> -7.7550986 | H33: 0.2967196 | I33: -5.8841416 | J33: =TJ!I31 -> -5.5990218 | K33: 0.2851198 | L33: 0.07560336517
A35: Figure L - Variation in generation zonal tariffs

Sheet TM
A1: Table M - Local Substation Tariffs | E1: Return to Index
A3: =Index!J11&" Local Substation Tariff (£/kW)" -> Local Substation Tariff (£/kW)
A4: Substation Rating | B4: Connection Type | C4: 132kV | D4: 275kV | E4: 400kV
A6: <1320 MW | B6: No redundancy | C6: 0.197964 | D6: 0.113248 | E6: 0.081598
A7: <1320 MW | B7: Redundancy | C7: 0.436098 | D7: 0.269817 | E7: 0.196232
A8: >=1320 MW | B8: No redundancy | C8: 0 | D8: 0.355083 | E8: 0.256797
A9: >=1320 MW | B9: Redundancy | C9: 0 | D9: 0.582955 | E9: 0.425509

Sheet TN
A1: Table N - Onshore Local Circuit Tariffs | H1: Return to Index
A3: Substation Name | B3: (£/kW) | C3: Substation Name | D3: (£/kW) | E3: Substation Name | F3: (£/kW)
A4: Achruach | B4: 4.233666 | C4: Dunhill | D4: 1.412272 | E4: Luichart | F4: 0.565969
A5: Aigas | B5: 0.644872 | C5: Dumnaglass | D5: 1.830606 | E5: Mark Hill | F5: 0.863311
A6: An Suidhe | B6: 3.002388 | C6: Edinbane | D6: 6.749147 | E6: Marchwood | F6: 0.376298
A7: Arecleoch | B7: 2.047871 | C7: Ewe Hill | D7: 2.399796 | E7: Millennium Wind | F7: 1.800496
A8: Baglan Bay | B8: 0.750267 | C8: Fallago | D8: 0.018259 | E8: Moffat | F8: 0.177954
A9: Beinneun Wind Farm | B9: 1.480658 | C9: Farr | D9: 3.515507 | E9: Mossford | F9: 2.839493
A10: Bhlaraidh Wind Farm | B10: 0.648821 | C10: Fernoch | D10: 4.337076 | E10: Nant | F10: -1.211205
A11: Black Hill | B11: 1.531255 | C11: Ffestiniogg | D11: 0.249457 | E11: Necton | F11: 1.108759
A12: BlackCraig Wind Farm | B12: 6.206946 | C12: Finlarig | D12: 0.315718 | E12: Rhigos | F12: 0.100477
A13: Black Law | B13: 1.722917 | C13: Foyers | D13: 0.742448 | E13: Rocksavage | F13: 0.017459
A14: BlackLaw Extension | B14: 3.653668 | C14: Galawhistle | D14: 1.458315 | E14: Saltend | F14: 0.336368
A15: Clyde (North) | B15: 0.108132 | C15: Glendoe | D15: 1.813672 | E15: South Humber Bank | F15: 0.938014
A16: Clyde (South) | B16: 0.125049 | C16: Glenglass | D16: 4.744186 | E16: Spalding | F16: 0.27648
A17: Corriegarth | B17: 3.108511 | C17: Gordonbush | D17: 1.169225 | E17: Strathbrora | F17: 0.779835
A18: Corriemoillie | B18: 1.640955 | C18: Griffin Wind | D18: 9.565045 | E18: Stronelairg | F18: 1.413146
A19: Coryton | B19: 0.052904 | C19: Hadyard Hill | D19: 5.937499 | E19: Strathy Wind | F19: 2.003637
A20: Cruachan | B20: 1.798572 | C20: Harestanes | D20: 2.482693 | E20: Wester Dod | F20: 0.287131
A21: Crystal Rig | B21: -0.048382 | C21: Hartlepool | D21: 0.5963 | E21: Whitelee | F21: 0.104644
A22: Culligran | B22: 1.708927 | C22: Hedon | D22: 0.178507 | E22: Whitelee Extension | F22: 0.29091
A23: Deanie | B23: 2.807523 | C23: Invergarry | D23: -0.675138 | E23: Gills Bay | F23: 2.483116
A24: Dersalloch | B24: 2.375095 | C24: Kilgallioch | D24: 1.037718 | E24: Kype Muir | F24: 1.462492
A25: Didcot | B25: 0.519707 | C25: Kilmorack | D25: 0.194729 | E25: Middle Muir | F25: 1.954443
A26: Dinorwig | B26: 2.3657 | C26: Langage | D26: 0.648712 | E26: Dorenell | F26: 2.069263
A27: Dunlaw Extension | B27: 1.481497 | C27: Lochay | D27: 0.36082 | E27: Millennium South | F27: 0.92898
A28: Aberdeen Bay | B28: 2.570844 | C28: Middleton | D28: 0.11003 | E28: Killingholme | F28: 0.704527

Sheet TN A-Z
A1: Table N - Onshore Local Circuit Tariffs | H1: Return to Index
A3: Substation Name | B3: (£/kW) | C3: Substation Name | D3: (£/kW) | E3: Substation Name | F3: (£/kW)
A4: Achruach | B4: =IF(ISNA(VLOOKUP(A4,TN!$A$4:$B$28,2,0)),IF(ISNA(VLOOKUP(A4,TN!$C$4:$D$28,2,0)),VLOOKUP(A4,TN!$E$4:$F$28,2,0),VLOOKUP(A4,TN!$C$4:$D$28,2,0)),VLOOKUP(A4,TN!$A$4:$B$28,2,0)) -> 4.233666 | C4: Dunhill | D4: =IF(ISNA(VLOOKUP(C4,TN!$A$4:$B$28,2,0)),IF(ISNA(VLOOKUP(C4,TN!$C$4:$D$28,2,0)),VLOOKUP(C4,TN!$E$4:$F$28,2,0),VLOOKUP(C4,TN!$C$4:$D$28,2,0)),VLOOKUP(C4,TN!$A$4:$B$28,2,0)) -> 1.412272 | E4: Lochay | F4: =IF(ISNA(VLOOKUP(E4,TN!$A$4:$B$28,2,0)),IF(ISNA(VLOOKUP(E4,TN!$C$4:$D$28,2,0)),VLOOKUP(E4,TN!$E$4:$F$28,2,0),VLOOKUP(E4,TN!$C$4:$D$28,2,0)),VLOOKUP(E4,TN!$A$4:$B$28,2,0)) -> 0.36082
A5: Aberdeen Bay | B5: =IF(ISNA(VLOOKUP(A5,TN!$A$4:$B$28,2,0)),IF(ISNA(VLOOKUP(A5,TN!$C$4:$D$28,2,0)),VLOOKUP(A5,TN!$E$4:$F$28,2,0),VLOOKUP(A5,TN!$C$4:$D$28,2,0)),VLOOKUP(A5,TN!$A$4:$B$28,2,0)) -> 2.570844 | C5: Dunlaw Extension | D5: =IF(ISNA(VLOOKUP(C5,TN!$A$4:$B$28,2,0)),IF(ISNA(VLOOKUP(C5,TN!$C$4:$D$28,2,0)),VLOOKUP(C5,TN!$E$4:$F$28,2,0),VLOOKUP(C5,TN!$C$4:$D$28,2,0)),VLOOKUP(C5,TN!$A$4:$B$28,2,0)) -> 1.481497 | E5: Luichart | F5: =IF(ISNA(VLOOKUP(E5,TN!$A$4:$B$28,2,0)),IF(ISNA(VLOOKUP(E5,TN!$C$4:$D$28,2,0)),VLOOKUP(E5,TN!$E$4:$F$28,2,0),VLOOKUP(E5,TN!$C$4:$D$28,2,0)),VLOOKUP(E5,TN!$A$4:$B$28,2,0)) -> 0.565969
A6: Aigas | B6: =IF(ISNA(VLOOKUP(A6,TN!$A$4:$B$28,2,0)),IF(ISNA(VLOOKUP(A6,TN!$C$4:$D$28,2,0)),VLOOKUP(A6,TN!$E$4:$F$28,2,0),VLOOKUP(A6,TN!$C$4:$D$28,2,0)),VLOOKUP(A6,TN!$A$4:$B$28,2,0)) -> 0.644872 | C6: Edinbane | D6: =IF(ISNA(VLOOKUP(C6,TN!$A$4:$B$28,2,0)),IF(ISNA(VLOOKUP(C6,TN!$C$4:$D$28,2,0)),VLOOKUP(C6,TN!$E$4:$F$28,2,0),VLOOKUP(C6,TN!$C$4:$D$28,2,0)),VLOOKUP(C6,TN!$A$4:$B$28,2,0)) -> 6.749147 | E6: Marchwood | F6: =IF(ISNA(VLOOKUP(E6,TN!$A$4:$B$28,2,0)),IF(ISNA(VLOOKUP(E6,TN!$C$4:$D$28,2,0)),VLOOKUP(E6,TN!$E$4:$F$28,2,0),VLOOKUP(E6,TN!$C$4:$D$28,2,0)),VLOOKUP(E6,TN!$A$4:$B$28,2,0)) -> 0.376298
A7: An Suidhe | B7: =IF(ISNA(VLOOKUP(A7,TN!$A$4:$B$28,2,0)),IF(ISNA(VLOOKUP(A7,TN!$C$4:$D$28,2,0)),VLOOKUP(A7,TN!$E$4:$F$28,2,0),VLOOKUP(A7,TN!$C$4:$D$28,2,0)),VLOOKUP(A7,TN!$A$4:$B$28,2,0)) -> 3.002388 | C7: Ewe Hill | D7: =IF(ISNA(VLOOKUP(C7,TN!$A$4:$B$28,2,0)),IF(ISNA(VLOOKUP(C7,TN!$C$4:$D$28,2,0)),VLOOKUP(C7,TN!$E$4:$F$28,2,0),VLOOKUP(C7,TN!$C$4:$D$28,2,0)),VLOOKUP(C7,TN!$A$4:$B$28,2,0)) -> 2.399796 | E7: Mark Hill | F7: =IF(ISNA(VLOOKUP(E7,TN!$A$4:$B$28,2,0)),IF(ISNA(VLOOKUP(E7,TN!$C$4:$D$28,2,0)),VLOOKUP(E7,TN!$E$4:$F$28,2,0),VLOOKUP(E7,TN!$C$4:$D$28,2,0)),VLOOKUP(E7,TN!$A$4:$B$28,2,0)) -> 0.863311
A8: Arecleoch | B8: =IF(ISNA(VLOOKUP(A8,TN!$A$4:$B$28,2,0)),IF(ISNA(VLOOKUP(A8,TN!$C$4:$D$28,2,0)),VLOOKUP(A8,TN!$E$4:$F$28,2,0),VLOOKUP(A8,TN!$C$4:$D$28,2,0)),VLOOKUP(A8,TN!$A$4:$B$28,2,0)) -> 2.047871 | C8: Fallago | D8: =IF(ISNA(VLOOKUP(C8,TN!$A$4:$B$28,2,0)),IF(ISNA(VLOOKUP(C8,TN!$C$4:$D$28,2,0)),VLOOKUP(C8,TN!$E$4:$F$28,2,0),VLOOKUP(C8,TN!$C$4:$D$28,2,0)),VLOOKUP(C8,TN!$A$4:$B$28,2,0)) -> 0.018259 | E8: Middle Muir | F8: =IF(ISNA(VLOOKUP(E8,TN!$A$4:$B$28,2,0)),IF(ISNA(VLOOKUP(E8,TN!$C$4:$D$28,2,0)),VLOOKUP(E8,TN!$E$4:$F$28,2,0),VLOOKUP(E8,TN!$C$4:$D$28,2,0)),VLOOKUP(E8,TN!$A$4:$B$28,2,0)) -> 1.954443
A9: Baglan Bay | B9: =IF(ISNA(VLOOKUP(A9,TN!$A$4:$B$28,2,0)),IF(ISNA(VLOOKUP(A9,TN!$C$4:$D$28,2,0)),VLOOKUP(A9,TN!$E$4:$F$28,2,0),VLOOKUP(A9,TN!$C$4:$D$28,2,0)),VLOOKUP(A9,TN!$A$4:$B$28,2,0)) -> 0.750267 | C9: Farr | D9: =IF(ISNA(VLOOKUP(C9,TN!$A$4:$B$28,2,0)),IF(ISNA(VLOOKUP(C9,TN!$C$4:$D$28,2,0)),VLOOKUP(C9,TN!$E$4:$F$28,2,0),VLOOKUP(C9,TN!$C$4:$D$28,2,0)),VLOOKUP(C9,TN!$A$4:$B$28,2,0)) -> 3.515507 | E9: Middleton | F9: =IF(ISNA(VLOOKUP(E9,TN!$A$4:$B$28,2,0)),IF(ISNA(VLOOKUP(E9,TN!$C$4:$D$28,2,0)),VLOOKUP(E9,TN!$E$4:$F$28,2,0),VLOOKUP(E9,TN!$C$4:$D$28,2,0)),VLOOKUP(E9,TN!$A$4:$B$28,2,0)) -> 0.11003
A10: Beinneun Wind Farm | B10: =IF(ISNA(VLOOKUP(A10,TN!$A$4:$B$28,2,0)),IF(ISNA(VLOOKUP(A10,TN!$C$4:$D$28,2,0)),VLOOKUP(A10,TN!$E$4:$F$28,2,0),VLOOKUP(A10,TN!$C$4:$D$28,2,0)),VLOOKUP(A10,TN!$A$4:$B$28,2,0)) -> 1.480658 | C10: Fernoch | D10: =IF(ISNA(VLOOKUP(C10,TN!$A$4:$B$28,2,0)),IF(ISNA(VLOOKUP(C10,TN!$C$4:$D$28,2,0)),VLOOKUP(C10,TN!$E$4:$F$28,2,0),VLOOKUP(C10,TN!$C$4:$D$28,2,0)),VLOOKUP(C10,TN!$A$4:$B$28,2,0)) -> 4.337076 | E10: Millennium South | F10: =IF(ISNA(VLOOKUP(E10,TN!$A$4:$B$28,2,0)),IF(ISNA(VLOOKUP(E10,TN!$C$4:$D$28,2,0)),VLOOKUP(E10,TN!$E$4:$F$28,2,0),VLOOKUP(E10,TN!$C$4:$D$28,2,0)),VLOOKUP(E10,TN!$A$4:$B$28,2,0)) -> 0.92898
A11: Bhlaraidh Wind Farm | B11: =IF(ISNA(VLOOKUP(A11,TN!$A$4:$B$28,2,0)),IF(ISNA(VLOOKUP(A11,TN!$C$4:$D$28,2,0)),VLOOKUP(A11,TN!$E$4:$F$28,2,0),VLOOKUP(A11,TN!$C$4:$D$28,2,0)),VLOOKUP(A11,TN!$A$4:$B$28,2,0)) -> 0.648821 | C11: Ffestiniogg | D11: =IF(ISNA(VLOOKUP(C11,TN!$A$4:$B$28,2,0)),IF(ISNA(VLOOKUP(C11,TN!$C$4:$D$28,2,0)),VLOOKUP(C11,TN!$E$4:$F$28,2,0),VLOOKUP(C11,TN!$C$4:$D$28,2,0)),VLOOKUP(C11,TN!$A$4:$B$28,2,0)) -> 0.249457 | E11: Millennium Wind | F11: =IF(ISNA(VLOOKUP(E11,TN!$A$4:$B$28,2,0)),IF(ISNA(VLOOKUP(E11,TN!$C$4:$D$28,2,0)),VLOOKUP(E11,TN!$E$4:$F$28,2,0),VLOOKUP(E11,TN!$C$4:$D$28,2,0)),VLOOKUP(E11,TN!$A$4:$B$28,2,0)) -> 1.800496
A12: Black Hill | B12: =IF(ISNA(VLOOKUP(A12,TN!$A$4:$B$28,2,0)),IF(ISNA(VLOOKUP(A12,TN!$C$4:$D$28,2,0)),VLOOKUP(A12,TN!$E$4:$F$28,2,0),VLOOKUP(A12,TN!$C$4:$D$28,2,0)),VLOOKUP(A12,TN!$A$4:$B$28,2,0)) -> 1.531255 | C12: Finlarig | D12: =IF(ISNA(VLOOKUP(C12,TN!$A$4:$B$28,2,0)),IF(ISNA(VLOOKUP(C12,TN!$C$4:$D$28,2,0)),VLOOKUP(C12,TN!$E$4:$F$28,2,0),VLOOKUP(C12,TN!$C$4:$D$28,2,0)),VLOOKUP(C12,TN!$A$4:$B$28,2,0)) -> 0.315718 | E12: Moffat | F12: =IF(ISNA(VLOOKUP(E12,TN!$A$4:$B$28,2,0)),IF(ISNA(VLOOKUP(E12,TN!$C$4:$D$28,2,0)),VLOOKUP(E12,TN!$E$4:$F$28,2,0),VLOOKUP(E12,TN!$C$4:$D$28,2,0)),VLOOKUP(E12,TN!$A$4:$B$28,2,0)) -> 0.177954
A13: Black Law | B13: =IF(ISNA(VLOOKUP(A13,TN!$A$4:$B$28,2,0)),IF(ISNA(VLOOKUP(A13,TN!$C$4:$D$28,2,0)),VLOOKUP(A13,TN!$E$4:$F$28,2,0),VLOOKUP(A13,TN!$C$4:$D$28,2,0)),VLOOKUP(A13,TN!$A$4:$B$28,2,0)) -> 1.722917 | C13: Foyers | D13: =IF(ISNA(VLOOKUP(C13,TN!$A$4:$B$28,2,0)),IF(ISNA(VLOOKUP(C13,TN!$C$4:$D$28,2,0)),VLOOKUP(C13,TN!$E$4:$F$28,2,0),VLOOKUP(C13,TN!$C$4:$D$28,2,0)),VLOOKUP(C13,TN!$A$4:$B$28,2,0)) -> 0.742448 | E13: Mossford | F13: =IF(ISNA(VLOOKUP(E13,TN!$A$4:$B$28,2,0)),IF(ISNA(VLOOKUP(E13,TN!$C$4:$D$28,2,0)),VLOOKUP(E13,TN!$E$4:$F$28,2,0),VLOOKUP(E13,TN!$C$4:$D$28,2,0)),VLOOKUP(E13,TN!$A$4:$B$28,2,0)) -> 2.839493
A14: BlackCraig Wind Farm | B14: =IF(ISNA(VLOOKUP(A14,TN!$A$4:$B$28,2,0)),IF(ISNA(VLOOKUP(A14,TN!$C$4:$D$28,2,0)),VLOOKUP(A14,TN!$E$4:$F$28,2,0),VLOOKUP(A14,TN!$C$4:$D$28,2,0)),VLOOKUP(A14,TN!$A$4:$B$28,2,0)) -> 6.206946 | C14: Galawhistle | D14: =IF(ISNA(VLOOKUP(C14,TN!$A$4:$B$28,2,0)),IF(ISNA(VLOOKUP(C14,TN!$C$4:$D$28,2,0)),VLOOKUP(C14,TN!$E$4:$F$28,2,0),VLOOKUP(C14,TN!$C$4:$D$28,2,0)),VLOOKUP(C14,TN!$A$4:$B$28,2,0)) -> 1.458315 | E14: Nant | F14: =IF(ISNA(VLOOKUP(E14,TN!$A$4:$B$28,2,0)),IF(ISNA(VLOOKUP(E14,TN!$C$4:$D$28,2,0)),VLOOKUP(E14,TN!$E$4:$F$28,2,0),VLOOKUP(E14,TN!$C$4:$D$28,2,0)),VLOOKUP(E14,TN!$A$4:$B$28,2,0)) -> -1.211205
A15: BlackLaw Extension | B15: =IF(ISNA(VLOOKUP(A15,TN!$A$4:$B$28,2,0)),IF(ISNA(VLOOKUP(A15,TN!$C$4:$D$28,2,0)),VLOOKUP(A15,TN!$E$4:$F$28,2,0),VLOOKUP(A15,TN!$C$4:$D$28,2,0)),VLOOKUP(A15,TN!$A$4:$B$28,2,0)) -> 3.653668 | C15: Gills Bay | D15: =IF(ISNA(VLOOKUP(C15,TN!$A$4:$B$28,2,0)),IF(ISNA(VLOOKUP(C15,TN!$C$4:$D$28,2,0)),VLOOKUP(C15,TN!$E$4:$F$28,2,0),VLOOKUP(C15,TN!$C$4:$D$28,2,0)),VLOOKUP(C15,TN!$A$4:$B$28,2,0)) -> 2.483116 | E15: Necton | F15: =IF(ISNA(VLOOKUP(E15,TN!$A$4:$B$28,2,0)),IF(ISNA(VLOOKUP(E15,TN!$C$4:$D$28,2,0)),VLOOKUP(E15,TN!$E$4:$F$28,2,0),VLOOKUP(E15,TN!$C$4:$D$28,2,0)),VLOOKUP(E15,TN!$A$4:$B$28,2,0)) -> 1.108759
A16: Clyde (North) | B16: =IF(ISNA(VLOOKUP(A16,TN!$A$4:$B$28,2,0)),IF(ISNA(VLOOKUP(A16,TN!$C$4:$D$28,2,0)),VLOOKUP(A16,TN!$E$4:$F$28,2,0),VLOOKUP(A16,TN!$C$4:$D$28,2,0)),VLOOKUP(A16,TN!$A$4:$B$28,2,0)) -> 0.108132 | C16: Glendoe | D16: =IF(ISNA(VLOOKUP(C16,TN!$A$4:$B$28,2,0)),IF(ISNA(VLOOKUP(C16,TN!$C$4:$D$28,2,0)),VLOOKUP(C16,TN!$E$4:$F$28,2,0),VLOOKUP(C16,TN!$C$4:$D$28,2,0)),VLOOKUP(C16,TN!$A$4:$B$28,2,0)) -> 1.813672 | E16: Rhigos | F16: =IF(ISNA(VLOOKUP(E16,TN!$A$4:$B$28,2,0)),IF(ISNA(VLOOKUP(E16,TN!$C$4:$D$28,2,0)),VLOOKUP(E16,TN!$E$4:$F$28,2,0),VLOOKUP(E16,TN!$C$4:$D$28,2,0)),VLOOKUP(E16,TN!$A$4:$B$28,2,0)) -> 0.100477
A17: Clyde (South) | B17: =IF(ISNA(VLOOKUP(A17,TN!$A$4:$B$28,2,0)),IF(ISNA(VLOOKUP(A17,TN!$C$4:$D$28,2,0)),VLOOKUP(A17,TN!$E$4:$F$28,2,0),VLOOKUP(A17,TN!$C$4:$D$28,2,0)),VLOOKUP(A17,TN!$A$4:$B$28,2,0)) -> 0.125049 | C17: Glenglass | D17: =IF(ISNA(VLOOKUP(C17,TN!$A$4:$B$28,2,0)),IF(ISNA(VLOOKUP(C17,TN!$C$4:$D$28,2,0)),VLOOKUP(C17,TN!$E$4:$F$28,2,0),VLOOKUP(C17,TN!$C$4:$D$28,2,0)),VLOOKUP(C17,TN!$A$4:$B$28,2,0)) -> 4.744186 | E17: Rocksavage | F17: =IF(ISNA(VLOOKUP(E17,TN!$A$4:$B$28,2,0)),IF(ISNA(VLOOKUP(E17,TN!$C$4:$D$28,2,0)),VLOOKUP(E17,TN!$E$4:$F$28,2,0),VLOOKUP(E17,TN!$C$4:$D$28,2,0)),VLOOKUP(E17,TN!$A$4:$B$28,2,0)) -> 0.017459
A18: Corriegarth | B18: =IF(ISNA(VLOOKUP(A18,TN!$A$4:$B$28,2,0)),IF(ISNA(VLOOKUP(A18,TN!$C$4:$D$28,2,0)),VLOOKUP(A18,TN!$E$4:$F$28,2,0),VLOOKUP(A18,TN!$C$4:$D$28,2,0)),VLOOKUP(A18,TN!$A$4:$B$28,2,0)) -> 3.108511 | C18: Gordonbush | D18: =IF(ISNA(VLOOKUP(C18,TN!$A$4:$B$28,2,0)),IF(ISNA(VLOOKUP(C18,TN!$C$4:$D$28,2,0)),VLOOKUP(C18,TN!$E$4:$F$28,2,0),VLOOKUP(C18,TN!$C$4:$D$28,2,0)),VLOOKUP(C18,TN!$A$4:$B$28,2,0)) -> 1.169225 | E18: Saltend | F18: =IF(ISNA(VLOOKUP(E18,TN!$A$4:$B$28,2,0)),IF(ISNA(VLOOKUP(E18,TN!$C$4:$D$28,2,0)),VLOOKUP(E18,TN!$E$4:$F$28,2,0),VLOOKUP(E18,TN!$C$4:$D$28,2,0)),VLOOKUP(E18,TN!$A$4:$B$28,2,0)) -> 0.336368
A19: Corriemoillie | B19: =IF(ISNA(VLOOKUP(A19,TN!$A$4:$B$28,2,0)),IF(ISNA(VLOOKUP(A19,TN!$C$4:$D$28,2,0)),VLOOKUP(A19,TN!$E$4:$F$28,2,0),VLOOKUP(A19,TN!$C$4:$D$28,2,0)),VLOOKUP(A19,TN!$A$4:$B$28,2,0)) -> 1.640955 | C19: Griffin Wind | D19: =IF(ISNA(VLOOKUP(C19,TN!$A$4:$B$28,2,0)),IF(ISNA(VLOOKUP(C19,TN!$C$4:$D$28,2,0)),VLOOKUP(C19,TN!$E$4:$F$28,2,0),VLOOKUP(C19,TN!$C$4:$D$28,2,0)),VLOOKUP(C19,TN!$A$4:$B$28,2,0)) -> 9.565045 | E19: South Humber Bank | F19: =IF(ISNA(VLOOKUP(E19,TN!$A$4:$B$28,2,0)),IF(ISNA(VLOOKUP(E19,TN!$C$4:$D$28,2,0)),VLOOKUP(E19,TN!$E$4:$F$28,2,0),VLOOKUP(E19,TN!$C$4:$D$28,2,0)),VLOOKUP(E19,TN!$A$4:$B$28,2,0)) -> 0.938014
A20: Coryton | B20: =IF(ISNA(VLOOKUP(A20,TN!$A$4:$B$28,2,0)),IF(ISNA(VLOOKUP(A20,TN!$C$4:$D$28,2,0)),VLOOKUP(A20,TN!$E$4:$F$28,2,0),VLOOKUP(A20,TN!$C$4:$D$28,2,0)),VLOOKUP(A20,TN!$A$4:$B$28,2,0)) -> 0.052904 | C20: Hadyard Hill | D20: =IF(ISNA(VLOOKUP(C20,TN!$A$4:$B$28,2,0)),IF(ISNA(VLOOKUP(C20,TN!$C$4:$D$28,2,0)),VLOOKUP(C20,TN!$E$4:$F$28,2,0),VLOOKUP(C20,TN!$C$4:$D$28,2,0)),VLOOKUP(C20,TN!$A$4:$B$28,2,0)) -> 5.937499 | E20: Spalding | F20: =IF(ISNA(VLOOKUP(E20,TN!$A$4:$B$28,2,0)),IF(ISNA(VLOOKUP(E20,TN!$C$4:$D$28,2,0)),VLOOKUP(E20,TN!$E$4:$F$28,2,0),VLOOKUP(E20,TN!$C$4:$D$28,2,0)),VLOOKUP(E20,TN!$A$4:$B$28,2,0)) -> 0.27648
A21: Cruachan | B21: =IF(ISNA(VLOOKUP(A21,TN!$A$4:$B$28,2,0)),IF(ISNA(VLOOKUP(A21,TN!$C$4:$D$28,2,0)),VLOOKUP(A21,TN!$E$4:$F$28,2,0),VLOOKUP(A21,TN!$C$4:$D$28,2,0)),VLOOKUP(A21,TN!$A$4:$B$28,2,0)) -> 1.798572 | C21: Harestanes | D21: =IF(ISNA(VLOOKUP(C21,TN!$A$4:$B$28,2,0)),IF(ISNA(VLOOKUP(C21,TN!$C$4:$D$28,2,0)),VLOOKUP(C21,TN!$E$4:$F$28,2,0),VLOOKUP(C21,TN!$C$4:$D$28,2,0)),VLOOKUP(C21,TN!$A$4:$B$28,2,0)) -> 2.482693 | E21: Strathbrora | F21: =IF(ISNA(VLOOKUP(E21,TN!$A$4:$B$28,2,0)),IF(ISNA(VLOOKUP(E21,TN!$C$4:$D$28,2,0)),VLOOKUP(E21,TN!$E$4:$F$28,2,0),VLOOKUP(E21,TN!$C$4:$D$28,2,0)),VLOOKUP(E21,TN!$A$4:$B$28,2,0)) -> 0.779835
A22: Crystal Rig | B22: =IF(ISNA(VLOOKUP(A22,TN!$A$4:$B$28,2,0)),IF(ISNA(VLOOKUP(A22,TN!$C$4:$D$28,2,0)),VLOOKUP(A22,TN!$E$4:$F$28,2,0),VLOOKUP(A22,TN!$C$4:$D$28,2,0)),VLOOKUP(A22,TN!$A$4:$B$28,2,0)) -> -0.048382 | C22: Hartlepool | D22: =IF(ISNA(VLOOKUP(C22,TN!$A$4:$B$28,2,0)),IF(ISNA(VLOOKUP(C22,TN!$C$4:$D$28,2,0)),VLOOKUP(C22,TN!$E$4:$F$28,2,0),VLOOKUP(C22,TN!$C$4:$D$28,2,0)),VLOOKUP(C22,TN!$A$4:$B$28,2,0)) -> 0.5963 | E22: Strathy Wind | F22: =IF(ISNA(VLOOKUP(E22,TN!$A$4:$B$28,2,0)),IF(ISNA(VLOOKUP(E22,TN!$C$4:$D$28,2,0)),VLOOKUP(E22,TN!$E$4:$F$28,2,0),VLOOKUP(E22,TN!$C$4:$D$28,2,0)),VLOOKUP(E22,TN!$A$4:$B$28,2,0)) -> 2.003637
A23: Culligran | B23: =IF(ISNA(VLOOKUP(A23,TN!$A$4:$B$28,2,0)),IF(ISNA(VLOOKUP(A23,TN!$C$4:$D$28,2,0)),VLOOKUP(A23,TN!$E$4:$F$28,2,0),VLOOKUP(A23,TN!$C$4:$D$28,2,0)),VLOOKUP(A23,TN!$A$4:$B$28,2,0)) -> 1.708927 | C23: Hedon | D23: =IF(ISNA(VLOOKUP(C23,TN!$A$4:$B$28,2,0)),IF(ISNA(VLOOKUP(C23,TN!$C$4:$D$28,2,0)),VLOOKUP(C23,TN!$E$4:$F$28,2,0),VLOOKUP(C23,TN!$C$4:$D$28,2,0)),VLOOKUP(C23,TN!$A$4:$B$28,2,0)) -> 0.178507 | E23: Stronelairg | F23: =IF(ISNA(VLOOKUP(E23,TN!$A$4:$B$28,2,0)),IF(ISNA(VLOOKUP(E23,TN!$C$4:$D$28,2,0)),VLOOKUP(E23,TN!$E$4:$F$28,2,0),VLOOKUP(E23,TN!$C$4:$D$28,2,0)),VLOOKUP(E23,TN!$A$4:$B$28,2,0)) -> 1.413146
A24: Deanie | B24: =IF(ISNA(VLOOKUP(A24,TN!$A$4:$B$28,2,0)),IF(ISNA(VLOOKUP(A24,TN!$C$4:$D$28,2,0)),VLOOKUP(A24,TN!$E$4:$F$28,2,0),VLOOKUP(A24,TN!$C$4:$D$28,2,0)),VLOOKUP(A24,TN!$A$4:$B$28,2,0)) -> 2.807523 | C24: Invergarry | D24: =IF(ISNA(VLOOKUP(C24,TN!$A$4:$B$28,2,0)),IF(ISNA(VLOOKUP(C24,TN!$C$4:$D$28,2,0)),VLOOKUP(C24,TN!$E$4:$F$28,2,0),VLOOKUP(C24,TN!$C$4:$D$28,2,0)),VLOOKUP(C24,TN!$A$4:$B$28,2,0)) -> -0.675138 | E24: Wester Dod | F24: =IF(ISNA(VLOOKUP(E24,TN!$A$4:$B$28,2,0)),IF(ISNA(VLOOKUP(E24,TN!$C$4:$D$28,2,0)),VLOOKUP(E24,TN!$E$4:$F$28,2,0),VLOOKUP(E24,TN!$C$4:$D$28,2,0)),VLOOKUP(E24,TN!$A$4:$B$28,2,0)) -> 0.287131
A25: Dersalloch | B25: =IF(ISNA(VLOOKUP(A25,TN!$A$4:$B$28,2,0)),IF(ISNA(VLOOKUP(A25,TN!$C$4:$D$28,2,0)),VLOOKUP(A25,TN!$E$4:$F$28,2,0),VLOOKUP(A25,TN!$C$4:$D$28,2,0)),VLOOKUP(A25,TN!$A$4:$B$28,2,0)) -> 2.375095 | C25: Kilgallioch | D25: =IF(ISNA(VLOOKUP(C25,TN!$A$4:$B$28,2,0)),IF(ISNA(VLOOKUP(C25,TN!$C$4:$D$28,2,0)),VLOOKUP(C25,TN!$E$4:$F$28,2,0),VLOOKUP(C25,TN!$C$4:$D$28,2,0)),VLOOKUP(C25,TN!$A$4:$B$28,2,0)) -> 1.037718 | E25: Whitelee | F25: =IF(ISNA(VLOOKUP(E25,TN!$A$4:$B$28,2,0)),IF(ISNA(VLOOKUP(E25,TN!$C$4:$D$28,2,0)),VLOOKUP(E25,TN!$E$4:$F$28,2,0),VLOOKUP(E25,TN!$C$4:$D$28,2,0)),VLOOKUP(E25,TN!$A$4:$B$28,2,0)) -> 0.104644
A26: Didcot | B26: =IF(ISNA(VLOOKUP(A26,TN!$A$4:$B$28,2,0)),IF(ISNA(VLOOKUP(A26,TN!$C$4:$D$28,2,0)),VLOOKUP(A26,TN!$E$4:$F$28,2,0),VLOOKUP(A26,TN!$C$4:$D$28,2,0)),VLOOKUP(A26,TN!$A$4:$B$28,2,0)) -> 0.519707 | C26: Killingholme | D26: =IF(ISNA(VLOOKUP(C26,TN!$A$4:$B$28,2,0)),IF(ISNA(VLOOKUP(C26,TN!$C$4:$D$28,2,0)),VLOOKUP(C26,TN!$E$4:$F$28,2,0),VLOOKUP(C26,TN!$C$4:$D$28,2,0)),VLOOKUP(C26,TN!$A$4:$B$28,2,0)) -> 0.704527 | E26: Whitelee Extension | F26: =IF(ISNA(VLOOKUP(E26,TN!$A$4:$B$28,2,0)),IF(ISNA(VLOOKUP(E26,TN!$C$4:$D$28,2,0)),VLOOKUP(E26,TN!$E$4:$F$28,2,0),VLOOKUP(E26,TN!$C$4:$D$28,2,0)),VLOOKUP(E26,TN!$A$4:$B$28,2,0)) -> 0.29091
A27: Dinorwig | B27: =IF(ISNA(VLOOKUP(A27,TN!$A$4:$B$28,2,0)),IF(ISNA(VLOOKUP(A27,TN!$C$4:$D$28,2,0)),VLOOKUP(A27,TN!$E$4:$F$28,2,0),VLOOKUP(A27,TN!$C$4:$D$28,2,0)),VLOOKUP(A27,TN!$A$4:$B$28,2,0)) -> 2.3657 | C27: Kilmorack | D27: =IF(ISNA(VLOOKUP(C27,TN!$A$4:$B$28,2,0)),IF(ISNA(VLOOKUP(C27,TN!$C$4:$D$28,2,0)),VLOOKUP(C27,TN!$E$4:$F$28,2,0),VLOOKUP(C27,TN!$C$4:$D$28,2,0)),VLOOKUP(C27,TN!$A$4:$B$28,2,0)) -> 0.194729
A28: Dorenell | B28: =IF(ISNA(VLOOKUP(A28,TN!$A$4:$B$28,2,0)),IF(ISNA(VLOOKUP(A28,TN!$C$4:$D$28,2,0)),VLOOKUP(A28,TN!$E$4:$F$28,2,0),VLOOKUP(A28,TN!$C$4:$D$28,2,0)),VLOOKUP(A28,TN!$A$4:$B$28,2,0)) -> 2.069263 | C28: Kype Muir | D28: =IF(ISNA(VLOOKUP(C28,TN!$A$4:$B$28,2,0)),IF(ISNA(VLOOKUP(C28,TN!$C$4:$D$28,2,0)),VLOOKUP(C28,TN!$E$4:$F$28,2,0),VLOOKUP(C28,TN!$C$4:$D$28,2,0)),VLOOKUP(C28,TN!$A$4:$B$28,2,0)) -> 1.462492
A29: Dumnaglass | B29: =IF(ISNA(VLOOKUP(A29,TN!$A$4:$B$28,2,0)),IF(ISNA(VLOOKUP(A29,TN!$C$4:$D$28,2,0)),VLOOKUP(A29,TN!$E$4:$F$28,2,0),VLOOKUP(A29,TN!$C$4:$D$28,2,0)),VLOOKUP(A29,TN!$A$4:$B$28,2,0)) -> 1.830606 | C29: Langage | D29: =IF(ISNA(VLOOKUP(C29,TN!$A$4:$B$28,2,0)),IF(ISNA(VLOOKUP(C29,TN!$C$4:$D$28,2,0)),VLOOKUP(C29,TN!$E$4:$F$28,2,0),VLOOKUP(C29,TN!$C$4:$D$28,2,0)),VLOOKUP(C29,TN!$A$4:$B$28,2,0)) -> 0.648712

Sheet TO
A1: Table O - CMP203: Circuits subject to one-off charges | E1: Return to Index
A3: Node 1 | B3: Node 2 | C3: Actual Parameters | D3: Amendment in Transport Model | E3: Generator
A4: Dyce 132kV | B4: Aberdeen Bay 132kV | C4: 9.5km of Cable | D4: 9.5km of OHL | E4: Aberdeen Bay
A5: Crystal Rig 132kV | B5: Wester Dod 132kV | C5: 3.9km of Cable | D5: 3.9km of OHL | E5: Aikengall II
A6: Wishaw 132kV | B6: Blacklaw 132kV | C6: 11.46km of Cable | D6: 11.46km of OHL | E6: Blacklaw
A7: Farigaig 132kV | B7: Corriegarth 132kV | C7: 4km Cable | D7: 4km OHL | E7: Corriegarth
A8: Elvanfoot 275kV | B8: Clyde North 275kV | C8: 6.2km of Cable | D8: 6.2km of OHL | E8: Clyde North
A9: Elvanfoot 275kV | B9: Clyde South 275kV | C9: 7.17km of Cable | D9: 7.17km of OHL | E9: Clyde South
A10: Farigaig 132kV | B10: Dunmaglass 132kV | C10: 4km Cable | D10: 4km OHL | E10: Dunmaglass
A11: Coalburn 132kV | B11: Galawhistle 132kV | C11: 9.7km cable | D11: 9.7km OHL | E11: Galawhistle II
A12: Moffat 132kV | B12: Harestanes 132kV | C12: 15.33km cable | D12: 15.33km OHL | E12: Harestanes
A13: Coalburn 132kV | B13: Kype Muir 132kV | C13: 17km cable | D13: 17km OHL | E13: Kype Muir
A14: Coalburn 132kV | B14: Middle Muir 132kV | C14: 13km cable | D14: 13km OHL | E14: Middle Muir
A15: Melgarve 132kV | B15: Stronelairg 132kV | C15: 10km cable | D15: 10km OHL | E15: Stronelairg
A16: East Kilbride South 275kV | B16: Whitelee 275kV | C16: 6km of Cable | D16: 6km of OHL | E16: Whitelee
A17: East Kilbride South 275kV | B17: Whitelee Extension 275kV | C17: 16.68km of Cable | D17: 16.68km of OHL | E17: Whitelee Extension

Sheet TP
A1: Table P - Offshore Local Tariffs | D1: Return to Index
A3: Offshore Generator | B3: Tariff Component (£/kW)
B4: Substation | C4: Circuit | D4: ETUoS
A5: Barrow | B5: 7.97733 | C5: 41.73738 | D5: 1.036396
A6: Burbo Bank | B6: 10.335699 | C6: 19.789101 | D6: 0
A7: Dudgeon | B7: 14.972203 | C7: 23.345723 | D7: 0
A8: Greater Gabbard | B8: 14.95655508 | C8: 34.36869085 | D8: 0
A9: Gunfleet | B9: 17.264666 | C9: 15.850315 | D9: 2.962515
A10: Gwynt Y Mor | B10: 18.21469038 | C10: 17.94372009 | D10: 0
A11: Humber Gateway | B11: 14.49472947 | C11: 32.70494059 | D11: 0
A12: Lincs | B12: 14.908307 | C12: 58.36942841 | D12: 0
A13: London Array | B13: 10.148476 | C13: 34.56514316 | D13: 0
A14: Ormonde | B14: 24.661619 | C14: 45.942286 | D14: 0.366121
A15: Robin Rigg East | B15: =B16 -> -0.456207 | C15: =C16 -> 30.219789 | D15: 9.366504
A16: Robin Rigg West | B16: -0.456207 | C16: 30.219789 | D16: 9.366504
A17: Sheringham Shoal | B17: 23.827399 | C17: 27.943956 | D17: 0.607419
A18: Thanet | B18: 18.14542933 | C18: 33.8114207 | D18: 0.8139602981
A19: Walney 1 | B19: 21.284146 | C19: 42.387322 | D19: 0
A20: Walney 2 | B20: 21.129352 | C20: 42.760756 | D20: 0
A21: West of Duddon Sands | B21: 8.212970793 | C21: 40.5259212 | D21: 0
A22: Westermost Rough | B22: 17.29375633 | C22: 29.25363521 | D22: 0

Sheet TQ
A1: Table Q - Contracted and Modelled TEC | F1: Return to Index
A3: Generation (GW) | B3: 2018/19 | C3: 2019/20 Initial Forecast | D3: 2019/20 April Forecast | E3: 2019/20 June Forecast | F3: 2019/20 Draft Tariffs | G3: 2019/20 Final Tariffs
A4: Contracted TEC | B4: 79.02881 | C4: 85.46461 | D4: =85938.76/1000 -> 85.93876 | E4: 83.9 | F4: 80.55665
A5: Modelled Best View TEC | B5: 79.02881 | C5: 77.68061 | D5: =77496.86/1000 -> 77.49686 | E5: 77.7 | F5: 80.55665
A6: Chargeable TEC | B6: 71.93431 | C6: 73.83361 | D6: =71711.76/1000 -> 71.71176 | E6: 71.9 | F6: 73.32465

Sheet TR
A1: Table R - Interconnectors | G1: Return to Index
A3: Interconnector | B3: Site | C3: Interconnected System | D3: Generation Zone | E3: Transport Model (Generation MW) Peak | F3: Transport Model (Generation MW) Year Round | G3: Charging Base (Generation MW)
A4: IFA Interconnector | B4: Sellindge 400kV | C4: France | D4: 24 | E4: 0 | F4: 2000 | G4: 0
A5: IFA2 | B5: Chilling 400kV | C5: France | D5: 26 | E5: 0 | F5: 1100 | G5: 0
A6: ElecLink | B6: Sellindge 400kV | C6: France | D6: 24 | E6: 0 | F6: 1000 | G6: 0
A7: BritNed | B7: Grain 400kV | C7: Netherlands | D7: 24 | E7: 0 | F7: 1200 | G7: 0
A8: Belgium Interconnector (Nemo) | B8: Richborough 400kV | C8: Belgium | D8: 24 | E8: 0 | F8: 1000 | G8: 0
A9: East - West | B9: Connah's Quay 400kV | C9: Republic of Ireland | D9: 16 | E9: 0 | F9: 505 | G9: 0
A10: Moyle | B10: Auchencrosh 275kV | C10: Northern Ireland | D10: 10 | E10: 0 | F10: 307 | G10: 0

Sheet TS
A1: Table S - Allowed Revenues | G1: Return to Index
A3: £m Nominal Value | B3: 2018/19 TNUoS Revenue | C3: 2019/20 TNUoS Revenue
B4: =TEE!D5 -> 2018/19 (fixed forecast) | C4: =TEE!E5 -> Initial Forecast | D4: =TEE!F5 -> April Forecast | E4: =TEE!G5 -> June Forecast | F4: =TEE!H5 -> Nov Draft | G4: Jan 2019 Final
A5: National Grid
A6: Price controlled revenue | B6: 1653.91797 | C6: 1768.519729 | D6: 1728.122369 | E6: 1770.6014 | F6: =F8+F7 -> 1737.707564
A7: Less income from connections | B7: 44.002401 | C7: 41.8826124 | D7: 44.002401 | E7: 44.002401 | F7: 31.61
A8: Income from TNUoS | B8: =+B6-B7 -> 1609.915569 | C8: 1726.637117 | D8: 1684.119968 | E8: 1726.598999 | F8: 1706.097564
A10: Scottish Power Transmission
A11: Price controlled revenue | B11: 364.83 | C11: 404.5082414 | D11: 404.5082414 | E11: 404.5082414 | F11: 397.5463279
A12: Less income from connections | B12: 14.86914685 | C12: 14.53212703 | D12: 14.53212703 | E12: 14.53212703 | F12: 14.5
A13: Income from TNUoS | B13: =+B11-B12 -> 349.9608532 | C13: 389.9761144 | D13: 389.9761144 | E13: 389.9761144 | F13: 383.0463279
A15: SHE Transmission
A16: Price controlled revenue | B16: 369.818 | C16: 352.8503347 | D16: 352.8503347 | E16: 352.8503347 | F16: 341.2086434
A17: Less income from connections | B17: 3.407116 | C17: 3.463507629 | D17: 3.463507629 | E17: 3.463507629 | F17: 3.402507375
A18: Income from TNUoS | B18: =+B16-B17 -> 366.410884 | C18: 349.3868271 | D18: 349.3868271 | E18: 349.3868271 | F18: 337.806136
A20: Offshore | B20: 318.1438119 | C20: 466.6616268 | D20: 386.4787867 | E20: 387.439852 | F20: 388.3861945
A21: Network Innovation Competition | B21: 32.66440404 | C21: 42.5 | D21: 32.66440404 | E21: 32.66440404 | F21: 32.66440404
A23: Interconnectors (Cap & Floor) | B23: -6.8 | C23: -6.8 | D23: -6.8 | E23: -6.8 | F23: -8.4
A24: Total to Collect from TNUoS | B24: =+B23+B21+B20+B18+B13+B8 -> 2670.295522 | C24: =+C23+C21+C20+C18+C13+C8 -> 2968.361685 | D24: 2835.8261 | E24: 2879.266197 | F24: =+F23+F21+F20+F18+F13+F8 -> 2839.600627

Sheet TT
A1: Table T - Generation and Demand Revenue Proportions | G1: Return to Index
C3: =TQ!C3 -> 2019/20 Initial Forecast | D3: =TQ!D3 -> 2019/20 April Forecast | E3: =TQ!E3 -> 2019/20 June Forecast | F3: =TQ!F3 -> 2019/20 Draft Tariffs | G3: =TQ!G3 -> 2019/20 Final Tariffs
A4: CAPEC | B4: Limit on generation tariff (€/MWh) | C4: 2.5 | D4: 2.5 | E4: 2.5 | F4: 2.5
A5: y | B5: Error Margin | C5: 0.21 | D5: 0.21 | E5: 0.21 | F5: 0.21
A6: ER | B6: Exchange Rate (€/£) | C6: 1.09 | D6: 1.13 | E6: 1.124927 | F6: 1.124927
A7: MAR | B7: Total Revenue (£m) | C7: 2968.361685 | D7: 2835.81261 | E7: 2879.252194 | F7: 2839.554299
A8: GO | B8: Generation Output (TWh) | C8: 243.1223612 | D8: 247.0348585 | E8: 229.8335714 | F8: 229.8335714
A9: G | B9: % of revenue from generation | C9: 0.1484050535 | D9: 0.1522542299 | E9: 0.1401446484 | F9: 0.1421039163
A10: D | B10: % of revenue from demand | C10: 0.8515949465 | D10: 0.8477457701 | E10: 0.8598553516 | F10: 0.8578960837
A11: G.R | B11: Revenue recovered from generation (£m) | C11: 440.5198747 | D11: =D7*D9 -> 431.764465 | E11: 403.5117865 | F11: 403.5117865
A12: D.R | B12: Revenue recovered from demand (£m) | C12: 2527.84181 | D12: =D7*D10 -> 2404.048145 | E12: 2475.740408 | F12: 2436.042512

Sheet TU
A1: Table U - Charging Bases | E1: Return to Index
A3: Charging Bases | B3: =TQ!D3 -> 2019/20 April Forecast | C3: =TQ!E3 -> 2019/20 June Forecast | D3: =TQ!F3 -> 2019/20 Draft Tariffs | E3: =TQ!G3 -> 2019/20 Final Tariffs
A4: Generation (GW) | B4: 71.71176 | C4: 71.91096 | D4: 73.32465
A5: NHH Demand (4pm-7pm TWh) | B5: 25.51209898 | C5: 25.51209898 | D5: 25.51209898
A6: Net Charging
A7: Total Average Net Triad (GW) | B7: 43.57282186 | C7: 43.57282186 | D7: 43.57282186
A8: HH Demand Average Net Triad (GW) | B8: 10.25464245 | C8: 10.25464245 | D8: 10.25464245
A9: Gross charging
A10: Total Average Gross Triad (GW) | B10: 51.32562988 | C10: 51.32562988 | D10: 51.32562988
A11: HH Demand Average Gross Triad (GW) | B11: 18.00745048 | C11: 18.00745048 | D11: 18.00745048
A12: Embedded Generation Export (GW) | B12: 7.752808023 | C12: 7.752808023 | D12: 7.752808023

Sheet TV
A1: Table V - Residual Calculation | F1: Return to Index
B3: Component | C3: =TQ!D3 -> 2019/20 April Forecast | D3: =TQ!E3 -> 2019/20 June Forecast | E3: =TQ!F3 -> 2019/20 Draft Tariffs | F3: =TQ!G3 -> 2019/20 Final Tariffs
A4: G | B4: Proportion of revenue recovered from generation (%) | C4: 0.1522542299 | D4: 0.1401446484 | E4: 0.1421039163
A5: D | B5: Proportion of revenue recovered from demand (%) | C5: 0.8477457701 | D5: 0.8598553516 | E5: 0.8578960837
A6: R | B6: Total TNUoS revenue (£m) | C6: 2835.81261 | D6: 2879.252194 | E6: 2839.554299
A7: Generation Residual
A8: RG | B8: Generator residual tariff (£/kW) | C8: -3.291240272 | D8: -3.613060365 | E8: -3.537456804
A9: ZG | B9: Revenue recovered from the locational element of generator tariffs (£m) | C9: 330.7122022 | D9: 329.0994538 | E9: 333.6354523
A10: O | B10: Revenue recovered from offshore local tariffs (£m) | C10: 298.7055801 | D10: 295.9536969 | E10: 289.0002648
A11: LG | B11: Revenue recovered from onshore local substation tariffs (£m) | C11: 19.24758905 | D11: 19.24053861 | E11: 19.37683966
A12: SG | B12: Revenue recovered from onshore local circuit tariffs (£m) | C12: 19.11972612 | D12: 19.03673655 | E12: 20.88201181
A13: BG | B13: Generator charging base (GW) | C13: 71.71176 | D13: 71.91096 | E13: 73.32465
A14: Gross Demand Residual
A15: RD | B15: Demand residual tariff (£/kW) | C15: 50.29859577 | D15: 51.69706577 | E15: 50.82288097
A16: ZD | B16: Revenue recovered from the locational element of demand tariffs (£m) | C16: -66.68557774 | D16: -66.72559336 | E16: -61.90480689
A17: EE | B17: Amount to be paid to Embedded Export Tariffs (£m) | C17: 110.8733876 | D17: 110.9184626 | E17: 110.5690592
A18: BD | B18: Demand Gross charging base (GW) | C18: 51.32562988 | D18: 51.32562988 | E18: 51.32562988

Sheet TW
A1: Table W - Small Generator Discount
A3: Small Generator Discount Calculation
A4: Generator Residual (£/kW) | B4: G | C4: -3.537456804
A5: Demand Residual (£/kW) | B5: D | C5: 50.82288097
A6: Small Generator Discount (£/kW) | B6: T = (G + D)/4 | C6: 11.821356
A7: Forecast Small Generator Volume (kW) | B7: V | C7: 2759260
A8: 2017/18 SGD cost (£) | B8: V x T | C8: 32618194.76
A9: Prior year reconcilation (£) | B9: R | C9: 0
A10: Total SGD Cost (£) | B10: C = (V x T) + R | C10: 32618194.76
A11: Total System Triad Demand (kW) | B11: TD | C11: 51325629.88
A12: Total HH Triad Demand (kW) | B12: HHD | C12: 18007450.48
A13: Total NHH Consumption (kWh) | B13: NHHD | C13: 2.551209898e+10
A14: Increase in HH Demand tariff (£/kW) | B14: HHT = C/TD | C14: 0.6355147483
A15: Total Cost to HH Customers (£) | B15: HHC = HHT * HHD | C15: 11444000.36
A16: Increase in NHH Demand tariff (p/kWh) | B16: NHHT = (C - HHC)/NHHD | C16: 0.08299667705
A17: Total Cost to NHH Customers (£) | B17: NHHC = NHHT * NHHD | C17: 21174194.4

Sheet TY
A1: Table Y - Demand Locational Tariffs | G1: Return to Index
A5: Zone | B5: =Residuals!B3 -> 2019/20 June | C5: 2019/20 April | D5: =Residuals!C3 -> 2019/20 Draft | E5: 2019/20 June (£/kW) | F5: Changes
B6: Peak (£/kW) | C6: Year Round (£/kW) | D6: Peak (£/kW) | E6: Year Round (£/kW) | F6: Peak (£/kW) | G6: Year Round (£/kW)
A7: 1 | B7: -2.041245073 | C7: -28.53857155 | D7: -1.523975081 | E7: -28.90380328 | F7: =D7-B7 -> 0.5172699914 | G7: =E7-C7 -> -0.3652317236
A8: 2 | B8: -2.244735525 | C8: -20.65519853 | D8: -1.800825971 | E8: -18.84283082 | F8: =D8-B8 -> 0.4439095538 | G8: =E8-C8 -> 1.812367707
A9: 3 | B9: -3.578833101 | C9: -6.826103973 | D9: -3.900602117 | E9: -6.471763511 | F9: -0.3217690166 | G9: 0.3543404623
A10: 4 | B10: -1.124121008 | C10: -2.443991968 | D10: -1.432272624 | E10: -2.135194997 | F10: -0.308151616 | G10: 0.3087969707
A11: 5 | B11: -2.839205956 | C11: -0.4365107435 | D11: -3.268569461 | E11: -0.09116157398 | F11: -0.429363505 | G11: 0.3453491695
A12: 6 | B12: -2.259558026 | C12: 0.2738900317 | D12: -2.505478975 | E12: 0.4517980954 | F12: -0.2459209491 | G12: 0.1779080637
A13: 7 | B13: -2.158902211 | C13: 2.322930151 | D13: -2.525628727 | E13: 2.566349785 | F13: -0.3667265158 | G13: 0.2434196345
A14: 8 | B14: -1.436306543 | C14: 2.897707358 | D14: -1.718495482 | E14: 3.247513096 | F14: -0.2821889387 | G14: 0.3498057372
A15: 9 | B15: 1.359902705 | C15: 0.8469983321 | D15: 1.367046019 | E15: 1.022232301 | F15: 0.007143314086 | G15: 0.1752339684
A16: 10 | B16: -6.144324238 | C16: 4.499897227 | D16: -5.996326921 | E16: 4.322920614 | F16: 0.1479973165 | G16: -0.176976613
A17: 11 | B17: 4.213771583 | C17: 0.7372906934 | D17: 3.956928824 | E17: 0.7548726981 | F17: -0.2568427582 | G17: 0.01758200471
A18: 12 | B18: 5.656189742 | C18: 2.408837864 | D18: 5.735162503 | E18: 2.041576837 | F18: 0.07897276044 | G18: -0.3672610264
A19: 13 | B19: 1.816924529 | C19: 4.314971979 | D19: 1.918497799 | E19: 4.021234584 | F19: 0.1015732699 | G19: -0.2937373949
A20: 14 | B20: -0.9559201924 | C20: 5.399888371 | D20: -0.6802377167 | E20: 4.967867388 | F20: 0.2756824758 | G20: -0.4320209838

Sheet TZ
A1: Table Z - Breakdown of the Embedded Export Tariff | L1: Return to Index
A3: Demand Zone | C3: =Residuals!B3 -> 2019/20 June | F3: =Residuals!C3 -> 2019/20 Draft | I3: Changes
C4: Locational (£/kW) | D4: AGIC (£/kW) | E4: Phased Residual (£/kW) | F4: Locational (£/kW) | G4: AGIC (£/kW) | H4: Phased Residual (£/kW) | I4: Locational (£/kW) | J4: AGIC (£/kW) | K4: Phased Residual (£/kW)
A5: 1 | B5: Northern Scotland | C5: -30.579817 | D5: 3.327268 | E5: 14.65 | F5: -30.42777836 | G5: 3.327268 | H5: 14.65 | I5: =F5-C5 -> 0.152038642 | J5: =G5-D5 -> 0 | K5: 0
A6: 2 | B6: Southern Scotland | C6: -22.899934 | D6: 3.327268 | E6: 14.65 | F6: -20.64365679 | G6: 3.327268 | H6: 14.65 | I6: =F6-C6 -> 2.256277205 | J6: =G6-D6 -> 0 | K6: =H6-E6 -> 0
A7: 3 | B7: Northern | C7: -10.404937 | D7: 3.327268 | E7: 14.65 | F7: -10.37236563 | G7: 3.327268 | H7: 14.65 | I7: 0.03257137188 | J7: 0 | K7: 0
A8: 4 | B8: North West | C8: -3.568113 | D8: 3.327268 | E8: 14.65 | F8: -3.567467621 | G8: 3.327268 | H8: 14.65 | I8: 0.0006453786366 | J8: 0 | K8: 0
A9: 5 | B9: Yorkshire | C9: -3.275717 | D9: 3.327268 | E9: 14.65 | F9: -3.359731035 | G9: 3.327268 | H9: 14.65 | I9: -0.08401403543 | J9: 0 | K9: 0
A10: 6 | B10: N Wales & Mersey | C10: -1.985668 | D10: 3.327268 | E10: 14.65 | F10: -2.053680879 | G10: 3.327268 | H10: 14.65 | I10: -0.06801287927 | J10: 0 | K10: 0
A11: 7 | B11: East Midlands | C11: 0.164028 | D11: 3.327268 | E11: 14.65 | F11: 0.04072105876 | G11: 3.327268 | H11: 14.65 | I11: -0.1233069412 | J11: 0 | K11: 0
A12: 8 | B12: Midlands | C12: 1.461401 | D12: 3.327268 | E12: 14.65 | F12: 1.529017614 | G12: 3.327268 | H12: 14.65 | I12: 0.06761661376 | J12: 0 | K12: 0
A13: 9 | B13: Eastern | C13: 2.206901 | D13: 3.327268 | E13: 14.65 | F13: 2.389278319 | G13: 3.327268 | H13: 14.65 | I13: 0.1823773195 | J13: 0 | K13: 0
A14: 10 | B14: South Wales | C14: -1.644427 | D14: 3.327268 | E14: 14.65 | F14: -1.673406307 | G14: 3.327268 | H14: 14.65 | I14: -0.02897930707 | J14: 0 | K14: 0
A15: 11 | B15: South East | C15: 4.951062 | D15: 3.327268 | E15: 14.65 | F15: 4.711801523 | G15: 3.327268 | H15: 14.65 | I15: -0.2392604774 | J15: 0 | K15: 0
A16: 12 | B16: London | C16: 8.065028 | D16: 3.327268 | E16: 14.65 | F16: 7.77673934 | G16: 3.327268 | H16: 14.65 | I16: -0.2882886599 | J16: 0 | K16: 0
A17: 13 | B17: Southern | C17: 6.131897 | D17: 3.327268 | E17: 14.65 | F17: 5.939732383 | G17: 3.327268 | H17: 14.65 | I17: -0.1921646165 | J17: 0 | K17: 0
A18: 14 | B18: South Western | C18: 4.443968 | D18: 3.327268 | E18: 14.65 | F18: 4.287629671 | G18: 3.327268 | H18: 14.65 | I18: -0.156338329 | J18: 0 | K18: 0

Sheet TAA
A1: Table AA - Demand Profiles | H1: Return to Index
A3: Zone | B3: Zone Name | C3: =Residuals!B3 -> 2019/20 June | H3: =Residuals!C3 -> 2019/20 Draft
C4: Locational Model Demand (MW) | D4: GROSS Tariff model Peak Demand (MW) | E4: GROSS Tariff Model HH Demand (MW) | F4: Tariff model NHH Demand (TWh) | G4: Tariff model Embedded Export (MW) | H4: Locational Model Demand (MW) | I4: GROSS Tariff model Peak Demand (MW) | J4: GROSS Tariff Model HH Demand (MW) | K4: Tariff model NHH Demand (TWh) | L4: Tariff model Embedded Export (MW)
A5: 1 | B5: Northern Scotland | C5: 499.4470879 | D5: 1483.158198 | E5: 427.580991 | F5: 0.7841774083 | G5: 958.033541 | H5: 716 | I5: 1483.158198 | J5: 427.580991 | K5: 0.7841774083 | L5: 958.033541
A6: 2 | B6: Southern Scotland | C6: 2695.280234 | D6: 3444.351288 | E6: 1125.619346 | F6: 1.771222969 | G6: 678.452112 | H6: 2961 | I6: 3444.351288 | J6: 1125.619346 | K6: 1.771222969 | L6: 678.452112
A7: 3 | B7: Northern | C7: 2702.30189 | D7: 2575.952919 | E7: 902.0794079 | F7: 1.317697649 | G7: 438.6492024 | H7: 2018 | I7: 2575.952919 | J7: 902.0794079 | K7: 1.317697649 | L7: 438.6492024
A8: 4 | B8: North West | C8: 3067.497227 | D8: 4037.404686 | E8: 1413.353913 | F8: 2.023841932 | G8: 410.1200072 | H8: 3103 | I8: 4037.404686 | J8: 1413.353913 | K8: 2.023841932 | L8: 410.1200072
A9: 5 | B9: Yorkshire | C9: 4384.081029 | D9: 3818.464656 | E9: 1495.276279 | F9: 1.825308989 | G9: 807.5337375 | H9: 3417 | I9: 3818.464656 | J9: 1495.276279 | K9: 1.825308989 | L9: 807.5337375
A10: 6 | B10: N Wales & Mersey | C10: 2557.744558 | D10: 2627.780829 | E10: 991.0023673 | F10: 1.29831167 | G10: 550.4392397 | H10: 2217 | I10: 2627.780829 | J10: 991.0023673 | K10: 1.29831167 | L10: 550.4392397
A11: 7 | B11: East Midlands | C11: 5375.75 | D11: 4651.125409 | E11: 1717.461032 | F11: 2.239372203 | G11: 639.1933985 | H11: 5407 | I11: 4651.125409 | J11: 1717.461032 | K11: 2.239372203 | L11: 639.1933985
A12: 8 | B12: Midlands | C12: 4424.72 | D12: 4251.458852 | E12: 1388.571697 | F12: 2.171433796 | G12: 335.0919945 | H12: 4777 | I12: 4251.458852 | J12: 1388.571697 | K12: 2.171433796 | L12: 335.0919945
A13: 9 | B13: Eastern | C13: 6238.213774 | D13: 6447.1848 | E13: 1931.332244 | F13: 3.23772703 | G13: 805.6924828 | H13: 5122 | I13: 6447.1848 | J13: 1931.332244 | K13: 3.23772703 | L13: 805.6924828
A14: 10 | B14: South Wales | C14: 1673.919626 | D14: 1821.866552 | E14: 778.9007288 | F14: 0.8841946776 | G14: 509.7005667 | H14: 1371 | I14: 1821.866552 | J14: 778.9007288 | K14: 0.8841946776 | L14: 509.7005667
A15: 11 | B15: South East | C15: 3870.804521 | D15: 3906.270344 | E15: 1059.905582 | F15: 2.00831368 | G15: 410.9235787 | H15: 3611 | I15: 3906.270344 | J15: 1059.905582 | K15: 2.00831368 | L15: 410.9235787
A16: 12 | B16: London | C16: 5599.242646 | D16: 4186.878704 | E16: 2202.526201 | F16: 1.870962159 | G16: 170.8310488 | H16: 5444 | I16: 4186.878704 | J16: 2202.526201 | K16: 1.870962159 | L16: 170.8310488
A17: 13 | B17: Southern | C17: 6565.89304 | D17: 5476.488038 | E17: 1933.211328 | F17: 2.677801363 | G17: 692.6738598 | H17: 7342 | I17: 5476.488038 | J17: 1933.211328 | K17: 2.677801363 | L17: 692.6738598
A18: 14 | B18: South Western | C18: 2210.07841 | D18: 2597.244605 | E18: 640.6293579 | F18: 1.401733455 | G18: 345.4732532 | H18: 2030 | I18: 2597.244605 | J18: 640.6293579 | K18: 1.401733455 | L18: 345.4732532
A19: Total | C19: 51864.97404 | D19: 51325.62988 | E19: 18007.45048 | F19: 25.51209898 | G19: 7752.808023 | H19: 49536 | I19: 51325.62988 | J19: 18007.45048 | K19: 25.51209898 | L19: 7752.808023

Sheet TBB
A1: Table BB - Annual Load Factors | L1: Return to Index
A5: Power Station | B5: Technology | C5: Yearly Load Factor Source | H5: Yearly Load Factor Value | M5: Specific ALF
C6: 2013 | D6: 2014 | E6: 2015 | F6: 2016 | G6: 2017 | H6: 2013 | I6: 2014 | J6: 2015 | K6: 2016 | L6: 2017
A7: ABERTHAW | B7: Coal | C7: Actual | D7: Actual | E7: Actual | F7: Actual | G7: Actual | H7: 0.6554125781 | I7: 0.5900433092 | J7: 0.5426112839 | K7: 0.5083352194 | L7: 0.05074202856 | M7: 0.546997
A8: ACHRUACH | B8: Onshore_Wind | C8: Generic | D8: Generic | E8: Partial | F8: Actual | G8: Actual | H8: 0 | I8: 0 | J8: 0.3364635778 | K8: 0.3671402756 | L8: 0.4434639004 | M8: 0.382356
A9: AFTON | B9: Onshore_Wind | C9: Generic | D9: Generic | E9: Generic | F9: Generic | G9: Partial | H9: 0 | I9: 0 | J9: 0 | K9: 0 | L9: 0.3487380627 | M9: 0.372641
A10: AIKENGALL II | B10: Onshore_Wind | C10: Generic | D10: Generic | E10: Generic | F10: Generic | G10: Partial | H10: 0 | I10: 0 | J10: 0 | K10: 0 | L10: 0.3350822747 | M10: 0.368089
A11: AN SUIDHE | B11: Onshore_Wind | C11: Actual | D11: Actual | E11: Actual | F11: Actual | G11: Actual | H11: 0.4158434308 | I11: 0.3694215748 | J11: 0.3549000488 | K11: 0.340938019 | L11: 0.4123231067 | M11: 0.378882
A12: ARECLEOCH | B12: Onshore_Wind | C12: Actual | D12: Actual | E12: Actual | F12: Actual | G12: Actual | H12: 0.3382964212 | I12: 0.2972982186 | J12: 0.3686121896 | K12: 0.1972460256 | L12: 0.3517281723 | M12: 0.329108
A13: BAGLAN BAY | B13: CCGT_CHP | C13: Actual | D13: Actual | E13: Actual | F13: Actual | G13: Actual | H13: 0.1641063104 | I13: 0.3791941198 | J13: 0.2912280794 | K13: 0.5520302485 | L13: 0.242890576 | M13: 0.304438
A14: BARROW | B14: Offshore_Wind | C14: Actual | D14: Actual | E14: Actual | F14: Actual | G14: Actual | H14: 0.5410801395 | I14: 0.4702314777 | J14: 0.4717913757 | K14: 0.4425840018 | L14: 0.470417396 | M14: 0.470813
A15: BARRY | B15: CCGT_CHP | C15: Actual | D15: Actual | E15: Actual | F15: Partial | G15: Actual | H15: 0.01298933372 | I15: 0.004002535533 | J15: 0.0217268588 | K15: 0.2434681007 | L15: 0.005406784222 | M15: 0.013374
A16: BEAULY CASCADE | B16: Hydro | C16: Actual | D16: Actual | E16: Actual | F16: Actual | G16: Actual | H16: 0.3566827272 | I16: 0.3711674814 | J16: 0.3500937771 | K16: 0.3048720097 | L16: 0.2199367914 | M16: 0.337216
A17: BEINNEUN | B17: Onshore_Wind | C17: Generic | D17: Generic | E17: Generic | F17: Partial | G17: Actual | H17: 0 | I17: 0 | J17: 0 | K17: 0.3096225949 | L17: 0.2582137897 | M17: 0.317476
A18: BHLARAIDH | B18: Onshore_Wind | C18: Generic | D18: Generic | E18: Generic | F18: Partial | G18: Actual | H18: 0 | I18: 0 | J18: 0 | K18: 0.3343385073 | L18: 0.4632094474 | M18: 0.394047
A19: BLACK LAW | B19: Onshore_Wind | C19: Actual | D19: Actual | E19: Actual | F19: Actual | G19: Actual | H19: 0.3196475886 | I19: 0.267881235 | J19: 0.2690350734 | K19: 0.2346225795 | L19: 0.2121370676 | M19: 0.25718
A20: BLACKCRAIG WINDFARM | B20: Onshore_Wind | C20: Generic | D20: Generic | E20: Generic | F20: Generic | G20: Partial | H20: 0 | I20: 0 | J20: 0 | K20: 0 | L20: 0.360207803 | M20: 0.376465
A21: BLACKLAW EXTENSION | B21: Onshore_Wind | C21: Generic | D21: Generic | E21: Partial | F21: Actual | G21: Actual | H21: 0 | I21: 0 | J21: 0.3346351822 | K21: 0.1310950996 | L21: 0.3048702797 | M21: 0.256867
A22: BRIMSDOWN | B22: CCGT_CHP | C22: Actual | D22: Actual | E22: Actual | F22: Actual | G22: Actual | H22: 0.1876450821 | I22: 0.1112289151 | J22: 0.1644630709 | K22: 0.4506145165 | L22: 0.2761683547 | M22: 0.209426
A23: BURBO BANK EXT | B23: Offshore_Wind | C23: Generic | D23: Generic | E23: Actual | F23: Actual | G23: Actual | H23: 0 | I23: 0 | J23: 0.1677807095 | K23: 0.2502333329 | L23: 0.4938500184 | M23: 0.303955
A24: CARRAIG GHEAL | B24: Onshore_Wind | C24: Actual | D24: Actual | E24: Actual | F24: Actual | G24: Actual | H24: 0.4527600159 | I24: 0.4892767421 | J24: 0.4562535712 | K24: 0.4042105668 | L24: 0.4553713718 | M24: 0.454795
A25: CARRINGTON | B25: CCGT_CHP | C25: Generic | D25: Generic | E25: Partial | F25: Actual | G25: Actual | H25: 0 | I25: 0 | J25: 0.3873179456 | K25: 0.5801146767 | L25: 0.588066414 | M25: 0.5185
A26: CLUNIE | B26: Hydro | C26: Actual | D26: Actual | E26: Actual | F26: Actual | G26: Actual | H26: 0.4532559714 | I26: 0.4324884871 | J26: 0.4797106213 | K26: 0.328297346 | L26: 0.3216991155 | M26: 0.404681
A27: CLYDE (NORTH) | B27: Onshore_Wind | C27: Actual | D27: Actual | E27: Actual | F27: Actual | G27: Actual | H27: 0.4265979683 | I27: 0.3688820034 | J27: 0.4141199558 | K27: 0.2688582747 | L27: 0.3926185008 | M27: 0.391873
A28: CLYDE (SOUTH) | B28: Onshore_Wind | C28: Actual | D28: Actual | E28: Actual | F28: Actual | G28: Actual | H28: 0.3989414316 | I28: 0.2941149857 | J28: 0.3996151087 | K28: 0.3487507516 | L28: 0.3916340571 | M28: 0.379775
A29: CONNAHS QUAY | B29: CCGT_CHP | C29: Actual | D29: Actual | E29: Actual | F29: Actual | G29: Actual | H29: 0.1282332562 | I29: 0.1837388621 | J29: 0.2827133169 | K29: 0.3745881097 | L29: 0.2008457557 | M29: 0.222433
A30: CONON CASCADE | B30: Hydro | C30: Actual | D30: Actual | E30: Actual | F30: Actual | G30: Actual | H30: 0.5428201771 | I30: 0.5552866675 | J30: 0.5898601723 | K30: 0.4867821106 | L30: 0.5085472685 | M30: 0.535551
A31: CORBY | B31: CCGT_CHP | C31: Actual | D31: Actual | E31: Actual | F31: Generic | G31: Partial | H31: 0.08083381131 | I31: 0.09675525086 | J31: 0.04541109061 | K31: 0 | L31: 0.4465026747 | M31: 0.074333
A32: CORRIEGARTH | B32: Onshore_Wind | C32: Generic | D32: Generic | E32: Generic | F32: Partial | G32: Actual | H32: 0 | I32: 0 | J32: 0 | K32: 0.2256446216 | L32: 0.4120130832 | M32: 0.34075
A33: CORRIEMOILLIE | B33: Onshore_Wind | C33: Generic | D33: Generic | E33: Generic | F33: Partial | G33: Actual | H33: 0 | I33: 0 | J33: 0 | K33: 0.3223155677 | L33: 0.3042104182 | M33: 0.33704
A34: CORYTON | B34: CCGT_CHP | C34: Actual | D34: Actual | E34: Actual | F34: Actual | G34: Actual | H34: 0.09785208191 | I34: 0.1751227783 | J34: 0.2639998973 | K34: 0.6303825888 | L34: 0.1640219702 | M34: 0.201048
A35: COTTAM | B35: Coal | C35: Actual | D35: Actual | E35: Actual | F35: Actual | G35: Actual | H35: 0.6739506599 | I35: 0.5144257197 | J35: 0.3441573804 | K35: 0.1493871088 | L35: 0.2165802451 | M35: 0.358388
A36: COTTAM DEVELOPMENT CENTRE | B36: CCGT_CHP | C36: Actual | D36: Actual | E36: Actual | F36: Actual | G36: Actual | H36: 0.1602488561 | I36: 0.3131320068 | J36: 0.2823822368 | K36: 0.6724822467 | L36: 0.5630065679 | M36: 0.386174
A37: COUR | B37: Onshore_Wind | C37: Generic | D37: Generic | E37: Generic | F37: Partial | G37: Actual | H37: 0 | I37: 0 | J37: 0 | K37: 0.3832465161 | L37: 0.5542729814 | M37: 0.440704
A38: COWES | B38: Gas_Oil | C38: Actual | D38: Actual | E38: Actual | F38: Actual | G38: Actual | H38: 0.0009563060935 | I38: 0.003135493941 | J38: 0.004912239197 | K38: 0.00531939588 | L38: 0.006941629986 | M38: 0.004456
A39: CRUACHAN | B39: Pumped_Storage | C39: Actual | D39: Actual | E39: Actual | F39: Actual | G39: Actual | H39: 0.09696855723 | I39: 0.09051556403 | J39: 0.08867279118 | K39: 0.07191420506 | L39: 0.09622517045 | M39: 0.091805
A40: CRYSTAL RIG II | B40: Onshore_Wind | C40: Actual | D40: Actual | E40: Actual | F40: Actual | G40: Actual | H40: 0.5025490264 | I40: 0.4759577237 | J40: 0.4838357364 | K40: 0.4026793644 | L40: 0.525802346 | M40: 0.487447
A41: CRYSTAL RIG III | B41: Onshore_Wind | C41: Generic | D41: Generic | E41: Generic | F41: Partial | G41: Actual | H41: 0 | I41: 0 | J41: 0 | K41: 0.3995032478 | L41: 0.5190203246 | M41: 0.434372
A42: DAMHEAD CREEK | B42: CCGT_CHP | C42: Actual | D42: Actual | E42: Actual | F42: Actual | G42: Actual | H42: 0.7717829873 | I42: 0.6746409945 | J42: 0.6489826766 | K42: 0.6811190673 | L42: 0.6351075679 | M42: 0.668248
A43: DEESIDE | B43: CCGT_CHP | C43: Actual | D43: Actual | E43: Actual | F43: Actual | G43: Actual | H43: 0.1730346416 | I43: 0.139018205 | J43: 0.1745794688 | K43: 0.2710900417 | L43: 0.2081640004 | M43: 0.185259
A44: DERSALLOCH | B44: Onshore_Wind | C44: Generic | D44: Generic | E44: Generic | F44: Partial | G44: Actual | H44: 0 | I44: 0 | J44: 0 | K44: 0.3377282768 | L44: 0.3985756287 | M44: 0.373632
A45: DIDCOT B | B45: CCGT_CHP | C45: Actual | D45: Actual | E45: Actual | F45: Actual | G45: Actual | H45: 0.1866242776 | I45: 0.2553449691 | J45: 0.4113887416 | K45: 0.5013584219 | L45: 0.4412337772 | M45: 0.369322
A46: DIDCOT GTS | B46: Gas_Oil | C46: Actual | D46: Actual | E46: Actual | F46: Actual | G46: Actual | H46: 0.0009018413391 | I46: 0.002842830273 | J46: 0.004861145298 | K46: 0.0004517142713 | L46: 0.006337200214 | M46: 0.002869
A47: DINORWIG | B47: Pumped_Storage | C47: Actual | D47: Actual | E47: Actual | F47: Actual | G47: Actual | H47: 0.1508978824 | I47: 0.1506499295 | J47: 0.146352903 | K47: 0.1595955617 | L47: 0.1494674855 | M47: 0.150338
A48: DRAX | B48: Coal | C48: Actual | D48: Actual | E48: Actual | F48: Actual | G48: Actual | H48: 0.8051507269 | I48: 0.8221488292 | J48: 0.7620297409 | K48: 0.6227049034 | L48: 0.5588959909 | M48: 0.729962
A49: DUDGEON | B49: Offshore_Wind | C49: Generic | D49: Generic | E49: Generic | F49: Partial | G49: Actual | H49: 0 | I49: 0 | J49: 0 | K49: 0.4247912366 | L49: 0.4697816433 | M49: 0.463364
A50: DUNGENESS B | B50: Nuclear | C50: Actual | D50: Actual | E50: Actual | F50: Actual | G50: Actual | H50: 0.6100679381 | I50: 0.5469173524 | J50: 0.7076171275 | K50: 0.7934033017 | L50: 0.6820859926 | M50: 0.66659
A51: DUNLAW EXTENSION | B51: Onshore_Wind | C51: Actual | D51: Actual | E51: Actual | F51: Actual | G51: Actual | H51: 0.3482260274 | I51: 0.300797456 | J51: 0.2912028784 | K51: 0.2655494839 | L51: 0.3108401213 | M51: 0.300947
A52: DUNMAGLASS | B52: Onshore_Wind | C52: Generic | D52: Generic | E52: Generic | F52: Partial | G52: Actual | H52: 0 | I52: 0 | J52: 0 | K52: 0.3897128321 | L52: 0.7569358569 | M52: 0.510414
A53: EDINBANE WIND | B53: Onshore_Wind | C53: Actual | D53: Actual | E53: Actual | F53: Actual | G53: Actual | H53: 0.3947845692 | I53: 0.3124578701 | J53: 0.3559368758 | K53: 0.3250092951 | L53: 0.3459291052 | M53: 0.342292
A54: EGGBOROUGH | B54: Coal | C54: Actual | D54: Actual | E54: Actual | F54: Partial | G54: Actual | H54: 0.7218427606 | I54: 0.4574209099 | J54: 0.2701572454 | K54: 0.4002834722 | L54: 0.07171484641 | M54: 0.48314
A55: ERROCHTY | B55: Hydro | C55: Actual | D55: Actual | E55: Actual | F55: Actual | G55: Actual | H55: 0.2826280457 | I55: 0.2535846667 | J55: 0.2815074681 | K55: 0.161775105 | L55: 0.1360813212 | M55: 0.232289
A56: EWE HILL | B56: Onshore_Wind | C56: Generic | D56: Generic | E56: Generic | F56: Partial | G56: Actual | H56: 0 | I56: 0 | J56: 0 | K56: 0.3333144099 | L56: 0.331848958 | M56: 0.349919
A57: FALLAGO | B57: Onshore_Wind | C57: Actual | D57: Actual | E57: Actual | F57: Actual | G57: Actual | H57: 0.5486831772 | I57: 0.4472667071 | J57: 0.5579918871 | K57: 0.4321761867 | L57: 0.494158411 | M57: 0.496703
A58: FARR WINDFARM | B58: Onshore_Wind | C58: Actual | D58: Actual | E58: Actual | F58: Actual | G58: Actual | H58: 0.4472119069 | I58: 0.3857115719 | J58: 0.4099627472 | K58: 0.3417656529 | L58: 0.3830459847 | M58: 0.392907
A59: FASNAKYLE G1 & G3 | B59: Hydro | C59: Actual | D59: Actual | E59: Actual | F59: Actual | G59: Actual | H59: 0.3536947662 | I59: 0.5748344501 | J59: 0.5315730751 | K59: 0.3097683988 | L59: 0.3816732802 | M59: 0.422314
A60: FAWLEY CHP | B60: CCGT_CHP | C60: Actual | D60: Actual | E60: Actual | F60: Actual | G60: Actual | H60: 0.6336191196 | I60: 0.7284838795 | J60: 0.5769783849 | K60: 0.6320062598 | L60: 0.7607927692 | M60: 0.664703
A61: FFESTINIOG | B61: Pumped_Storage | C61: Actual | D61: Actual | E61: Actual | F61: Actual | G61: Actual | H61: 0.05463133149 | I61: 0.04325088629 | J61: 0.03411343478 | K61: 0.05674870402 | L61: 0.04211783898 | M61: 0.046667
A62: FIDDLERS FERRY | B62: Coal | C62: Actual | D62: Actual | E62: Actual | F62: Actual | G62: Actual | H62: 0.4903738741 | I62: 0.4524352001 | J62: 0.2745909916 | K62: 0.08247804108 | L62: 0.1399084214 | M62: 0.288978
A63: FINLARIG | B63: Hydro | C63: Actual | D63: Actual | E63: Actual | F63: Actual | G63: Actual | H63: 0.5991420091 | I63: 0.5940922444 | J63: 0.6513488436 | K63: 0.4964015567 | L63: 0.5264148263 | M63: 0.573216
A64: FOYERS | B64: Pumped_Storage | C64: Actual | D64: Actual | E64: Actual | F64: Actual | G64: Actual | H64: 0.1470970594 | I64: 0.1230476579 | J64: 0.1543232897 | K64: 0.1130461724 | L64: 0.1453331594 | M64: 0.138493
A65: FREASDAIL | B65: Onshore_Wind | C65: Generic | D65: Generic | E65: Generic | F65: Partial | G65: Actual | H65: 0 | I65: 0 | J65: 0 | K65: 0.325600001 | L65: 0.3897088373 | M65: 0.366634
A66: GALAWHISTLE | B66: Onshore_Wind | C66: Generic | D66: Generic | E66: Generic | F66: Partial | G66: Actual | H66: 0 | I66: 0 | J66: 0 | K66: 0.3497646386 | L66: 0.4244553574 | M66: 0.386271
A67: GALLOPER | B67: Offshore_Wind | C67: Generic | D67: Generic | E67: Generic | F67: Generic | G67: Partial | H67: 0 | I67: 0 | J67: 0 | K67: 0 | L67: 0.54759291 | M67: 0.512877
A68: GARRY CASCADE | B68: Hydro | C68: Actual | D68: Actual | E68: Actual | F68: Actual | G68: Actual | H68: 0.5593084084 | I68: 0.6438275204 | J68: 0.6027718939 | K68: 0.610497804 | L68: 0.6000096401 | M68: 0.604426
A69: GLANDFORD BRIGG | B69: CCGT_CHP | C69: Actual | D69: Actual | E69: Actual | F69: Actual | G69: Actual | H69: 0.01567264104 | I69: 0.005400774783 | J69: 0.01819074281 | K69: 0.02768220562 | L69: 0.01841808381 | M69: 0.017427
A70: GLEN APP | B70: Onshore_Wind | C70: Generic | D70: Generic | E70: Generic | F70: Partial | G70: Actual | H70: 0 | I70: 0 | J70: 0 | K70: 0.2513732672 | L70: 0.2483932967 | M70: 0.294787
A71: GLENDOE | B71: Hydro | C71: Actual | D71: Actual | E71: Actual | F71: Actual | G71: Actual | H71: 0.3638015264 | I71: 0.3234944282 | J71: 0.348531586 | K71: 0.2386045875 | L71: 0.2401053108 | M71: 0.304044
A72: GLENMORISTON | B72: Hydro | C72: Actual | D72: Actual | E72: Actual | F72: Actual | G72: Actual | H72: 0.4445944238 | I72: 0.4874869704 | J72: 0.5069211208 | K72: 0.3467089659 | L72: 0.4439595764 | M72: 0.45868
A73: GORDONBUSH | B73: Onshore_Wind | C73: Actual | D73: Actual | E73: Actual | F73: Actual | G73: Actual | H73: 0.4655942645 | I73: 0.4779807485 | J73: 0.4771606021 | K73: 0.5041257208 | L73: 0.3417619569 | M73: 0.473579
A74: GRAIN | B74: CCGT_CHP | C74: Actual | D74: Actual | E74: Actual | F74: Actual | G74: Actual | H74: 0.4138332513 | I74: 0.440030877 | J74: 0.3978952529 | K74: 0.538226979 | L74: 0.3977553645 | M74: 0.417253
A75: GRANGEMOUTH | B75: CCGT_CHP | C75: Actual | D75: Actual | E75: Actual | F75: Actual | G75: Actual | H75: 0.5590469368 | I75: 0.6261679129 | J75: 0.5982741917 | K75: 0.5145577911 | L75: 0.5897859494 | M75: 0.582369
A76: GREAT YARMOUTH | B76: CCGT_CHP | C76: Actual | D76: Actual | E76: Actual | F76: Actual | G76: Actual | H76: 0.2074086716 | I76: 0.1866331211 | J76: 0.5989568559 | K76: 0.6351203295 | L76: 0.5015206294 | M76: 0.435962
A77: GREATER GABBARD | B77: Offshore_Wind | C77: Actual | D77: Actual | E77: Actual | F77: Actual | G77: Actual | H77: 0.4830383801 | I77: 0.4213270418 | J77: 0.5024678486 | K77: 0.431131513 | L77: 0.4649385098 | M77: 0.459703
A78: GRIFFIN WIND | B78: Onshore_Wind | C78: Actual | D78: Actual | E78: Actual | F78: Actual | G78: Actual | H78: 0.3195657591 | I78: 0.3131516292 | J78: 0.3102838967 | K78: 0.2582283141 | L78: 0.2889698681 | M78: 0.304135
A79: GUNFLEET SANDS I | B79: Offshore_Wind | C79: Actual | D79: Actual | E79: Actual | F79: Actual | G79: Actual | H79: 0.5664719297 | I79: 0.4701322658 | J79: 0.5046500838 | K79: 0.4579401502 | L79: 0.4730189619 | M79: 0.4826
A80: GUNFLEET SANDS II | B80: Offshore_Wind | C80: Actual | D80: Actual | E80: Actual | F80: Actual | G80: Actual | H80: 0.5223612568 | I80: 0.4472111569 | J80: 0.4905213083 | K80: 0.4398928867 | L80: 0.4699275453 | M80: 0.46922
A81: GWYNT Y MOR | B81: Offshore_Wind | C81: Actual | D81: Actual | E81: Actual | F81: Actual | G81: Actual | H81: 0.08003557839 | I81: 0.6161851816 | J81: 0.6312761036 | K81: 0.448323336 | L81: 0.5040305053 | M81: 0.522846
A82: HADYARD HILL | B82: Onshore_Wind | C82: Actual | D82: Actual | E82: Actual | F82: Actual | G82: Actual | H82: 0.3194883415 | I82: 0.2776354642 | J82: 0.3665265584 | K82: 0.3143636273 | L82: 0.3403750223 | M82: 0.324742
A83: HARESTANES | B83: Onshore_Wind | C83: Partial | D83: Actual | E83: Actual | F83: Actual | G83: Actual | H83: 0.2414190375 | I83: 0.2863551442 | J83: 0.2780929383 | K83: 0.225463894 | L83: 0.2901245954 | M83: 0.284858
A84: HARTLEPOOL | B84: Nuclear | C84: Actual | D84: Actual | E84: Actual | F84: Actual | G84: Actual | H84: 0.7375566747 | I84: 0.5628033303 | J84: 0.5386664678 | K84: 0.7803904798 | L84: 0.806217743 | M84: 0.693583
A85: HEYSHAM | B85: Nuclear | C85: Actual | D85: Actual | E85: Actual | F85: Actual | G85: Actual | H85: 0.7336280621 | I85: 0.6882520985 | J85: 0.7273439855 | K85: 0.7961687817 | L85: 0.8516168958 | M85: 0.75238
A86: HINKLEY POINT B | B86: Nuclear | C86: Actual | D86: Actual | E86: Actual | F86: Actual | G86: Actual | H86: 0.6886635233 | I86: 0.7014113028 | J86: 0.6764122724 | K86: 0.7122645933 | L86: 0.8346431533 | M86: 0.70078
A87: HUMBER GATEWAY | B87: Offshore_Wind | C87: Generic | D87: Partial | E87: Actual | F87: Actual | G87: Actual | H87: 0 | I87: 0.4393425991 | J87: 0.6296306249 | K87: 0.5971951448 | L87: 0.5499129597 | M87: 0.592246
A88: HUNTERSTON | B88: Nuclear | C88: Actual | D88: Actual | E88: Actual | F88: Actual | G88: Actual | H88: 0.8479526486 | I88: 0.7913683046 | J88: 0.8217859127 | K88: 0.8329393387 | L88: 0.7986444707 | M88: 0.81779
A89: IMMINGHAM | B89: CCGT_CHP | C89: Actual | D89: Actual | E89: Actual | F89: Actual | G89: Actual | H89: 0.378218755 | I89: 0.5683161276 | J89: 0.694686233 | K89: 0.7195503059 | L89: 0.6431751088 | M89: 0.635392
A90: INDIAN QUEENS | B90: Gas_Oil | C90: Actual | D90: Actual | E90: Actual | F90: Actual | G90: Actual | H90: 0.002321152968 | I90: 0.0008756849315 | J90: 0.0007227101223 | K90: 0.0008473744292 | L90: 0.0007402910959 | M90: 0.000821
A91: KEADBY | B91: CCGT_CHP | C91: Actual | D91: Generic | E91: Partial | F91: Actual | G91: Actual | H91: 6.290187308e-07 | I91: 0 | J91: 0.3518579167 | K91: 0.2860758714 | L91: 0.3869573655 | M91: 0.224345
A92: KEITH HILL | B92: Onshore_Wind | C92: Generic | D92: Generic | E92: Generic | F92: Generic | G92: Partial | H92: 0 | I92: 0 | J92: 0 | K92: 0 | L92: 0.3698577152 | M92: 0.379681
A93: KILBRAUR | B93: Onshore_Wind | C93: Actual | D93: Actual | E93: Actual | F93: Actual | G93: Actual | H93: 0.5137773121 | I93: 0.5435496149 | J93: 0.5038072105 | K93: 0.4653419035 | L93: 0.5675014925 | M93: 0.520378
A94: KILGALLIOCH | B94: Onshore_Wind | C94: Generic | D94: Generic | E94: Generic | F94: Partial | G94: Actual | H94: 0 | I94: 0 | J94: 0 | K94: 0.2527392069 | L94: 0.2532540595 | M94: 0.296862
A95: KILLIN CASCADE | B95: Hydro | C95: Actual | D95: Actual | E95: Actual | F95: Actual | G95: Actual | H95: 0.4553558716 | I95: 0.4482051922 | J95: 0.5323483019 | K95: 0.2749618298 | L95: 0.349230949 | M95: 0.417597
A96: KILLINGHOLME (POWERGEN) | B96: Gas_Oil | C96: Generic | D96: Generic | E96: Generic | F96: Generic | G96: Partial | H96: 0 | I96: 0 | J96: 0 | K96: 0 | L96: 0.005442609209 | M96: 0.003624
A97: LANGAGE | B97: CCGT_CHP | C97: Actual | D97: Actual | E97: Actual | F97: Actual | G97: Actual | H97: 0.4087485698 | I97: 0.3486289992 | J97: 0.1653103923 | K97: 0.4454126246 | L97: 0.4233680119 | M97: 0.393582
A98: LINCS WIND FARM | B98: Offshore_Wind | C98: Actual | D98: Actual | E98: Actual | F98: Actual | G98: Actual | H98: 0.4659867735 | I98: 0.4381783858 | J98: 0.4913064248 | K98: 0.4451924002 | L98: 0.5109114039 | M98: 0.467495
A99: LITTLE BARFORD | B99: CCGT_CHP | C99: Actual | D99: Actual | E99: Actual | F99: Actual | G99: Actual | H99: 0.3362859004 | I99: 0.4966440439 | J99: 0.3998289362 | K99: 0.6485966947 | L99: 0.6630672698 | M99: 0.515023
A100: LOCHLUICHART | B100: Onshore_Wind | C100: Partial | D100: Actual | E100: Actual | F100: Actual | G100: Actual | H100: 0.276728431 | I100: 0.2021030888 | J100: 0.2926628108 | K100: 0.316896893 | L100: 0.343321941 | M100: 0.317627
A101: LONDON ARRAY | B101: Offshore_Wind | C101: Actual | D101: Actual | E101: Actual | F101: Actual | G101: Actual | H101: 0.5127030112 | I101: 0.6408802365 | J101: 0.6686820334 | K101: 0.5362454766 | L101: 0.5055146403 | M101: 0.563276
A102: LYNEMOUTH | B102: Coal | C102: Generic | D102: Generic | E102: Partial | F102: Generic | G102: Actual | H102: 0 | I102: 0 | J102: 0.6801959025 | K102: 0 | L102: 0.01078322725 | M102: 0.355714
A103: MARCHWOOD | B103: CCGT_CHP | C103: Actual | D103: Actual | E103: Actual | F103: Actual | G103: Actual | H103: 0.4868446246 | I103: 0.6640208574 | J103: 0.550879364 | K103: 0.7542478217 | L103: 0.6736924249 | M103: 0.629531
A104: MARK HILL | B104: Onshore_Wind | C104: Actual | D104: Actual | E104: Actual | F104: Actual | G104: Actual | H104: 0.3028629627 | I104: 0.2679424679 | J104: 0.3402268447 | K104: 0.2196529788 | L104: 0.3109145666 | M104: 0.293907
A105: MEDWAY | B105: CCGT_CHP | C105: Actual | D105: Actual | E105: Actual | F105: Actual | G105: Actual | H105: 0.1455454874 | I105: 0.2809622568 | J105: 0.341799498 | K105: 0.3515047572 | L105: 0.3672610408 | M105: 0.324756
A106: MILLENNIUM | B106: Onshore_Wind | C106: Actual | D106: Actual | E106: Actual | F106: Actual | G106: Actual | H106: 0.5266177555 | I106: 0.5326363716 | J106: 0.4840375683 | K106: 0.4497635054 | L106: 0.5364875659 | M106: 0.514431
A107: MINNYGAP | B107: Onshore_Wind | C107: Generic | D107: Generic | E107: Generic | F107: Generic | G107: Actual | H107: 0 | I107: 0 | J107: 0 | K107: 0 | L107: 0.3099619726 | M107: 0.359716
A108: NANT | B108: Hydro | C108: Actual | D108: Actual | E108: Actual | F108: Actual | G108: Actual | H108: 0.3558834855 | I108: 0.3640404718 | J108: 0.3737878567 | K108: 0.306350137 | L108: 0.3490257534 | M108: 0.356317
A109: ORMONDE | B109: Offshore_Wind | C109: Actual | D109: Actual | E109: Actual | F109: Actual | G109: Actual | H109: 0.4965608409 | I109: 0.4287111339 | J109: 0.4719858417 | K109: 0.4121875723 | L109: 0.377161583 | M109: 0.437628
A110: PEMBROKE | B110: CCGT_CHP | C110: Actual | D110: Actual | E110: Actual | F110: Actual | G110: Actual | H110: 0.6039277983 | I110: 0.6753460103 | J110: 0.6455962688 | K110: 0.7764784209 | L110: 0.7028659689 | M110: 0.674603
A111: PEN Y CYMOEDD | B111: Onshore_Wind | C111: Generic | D111: Generic | E111: Generic | F111: Partial | G111: Actual | H111: 0 | I111: 0 | J111: 0 | K111: 0.2694464754 | L111: 0.360947784 | M111: 0.338329
A112: PETERBOROUGH | B112: CCGT_CHP | C112: Actual | D112: Actual | E112: Partial | F112: Actual | G112: Actual | H112: 0.01831117463 | I112: 0.01092922095 | J112: 0.04103173925 | K112: 0.01791374988 | L112: 0.004348863107 | M112: 0.015718
A113: PETERHEAD | B113: CCGT_CHP | C113: Actual | D113: Actual | E113: Actual | F113: Actual | G113: Actual | H113: 0.4188107012 | I113: 0.004857751998 | J113: 0.233812693 | K113: 0.4222919452 | L113: 0.6578080108 | M113: 0.358305
A114: RACE BANK | B114: Offshore_Wind | C114: Generic | D114: Generic | E114: Generic | F114: Partial | G114: Actual | H114: 0 | I114: 0 | J114: 0 | K114: 0.4530621447 | L114: 0.3819776761 | M114: 0.44352
A115: RAMPION | B115: Offshore_Wind | C115: Generic | D115: Generic | E115: Generic | F115: Generic | G115: Partial | H115: 0 | I115: 0 | J115: 0 | K115: 0 | L115: 0.4098845805 | M115: 0.466974
A116: RATCLIFFE-ON-SOAR | B116: Coal | C116: Actual | D116: Actual | E116: Actual | F116: Actual | G116: Actual | H116: 0.7174031706 | I116: 0.5617667781 | J116: 0.1968139855 | K116: 0.1546565575 | L116: 0.1937798647 | M116: 0.317454
A117: ROBIN RIGG EAST | B117: Offshore_Wind | C117: Actual | D117: Actual | E117: Actual | F117: Actual | G117: Actual | H117: 0.4675621774 | I117: 0.5532089029 | J117: 0.5197003309 | K117: 0.5050960269 | L117: 0.4255988076 | M117: 0.497453
A118: ROBIN RIGG WEST | B118: Offshore_Wind | C118: Actual | D118: Actual | E118: Actual | F118: Actual | G118: Actual | H118: 0.4806288118 | I118: 0.5341496352 | J118: 0.5608813616 | K118: 0.5153830529 | L118: 0.4739908179 | M118: 0.510054
A119: ROCKSAVAGE | B119: CCGT_CHP | C119: Actual | D119: Actual | E119: Actual | F119: Actual | G119: Actual | H119: 0.02615458495 | I119: 0.04425174756 | J119: 0.1980613207 | K119: 0.5868063204 | L119: 0.2981220769 | M119: 0.180145
A120: RYE HOUSE | B120: CCGT_CHP | C120: Actual | D120: Actual | E120: Actual | F120: Actual | G120: Actual | H120: 0.07469476339 | I120: 0.05370102181 | J120: 0.07790559998 | K120: 0.156538393 | L120: 0.1347358566 | M120: 0.095779
A121: SALTEND | B121: CCGT_CHP | C121: Actual | D121: Actual | E121: Actual | F121: Actual | G121: Actual | H121: 0.6900623076 | I121: 0.6795175073 | J121: 0.5562280896 | K121: 0.7740194296 | L121: 0.7015958414 | M121: 0.690392
A122: SANQUHAR | B122: Onshore_Wind | C122: Generic | D122: Generic | E122: Generic | F122: Generic | G122: Partial | H122: 0 | I122: 0 | J122: 0 | K122: 0 | L122: 0.3520975587 | M122: 0.373761
A123: SEABANK | B123: CCGT_CHP | C123: Actual | D123: Actual | E123: Actual | F123: Actual | G123: Actual | H123: 0.1827814991 | I123: 0.2569560281 | J123: 0.2721363181 | K123: 0.4168152491 | L123: 0.5546059184 | M123: 0.315303
A124: SELLAFIELD | B124: CCGT_CHP | C124: Actual | D124: Actual | E124: Actual | F124: Actual | G124: Actual | H124: 0.250220629 | I124: 0.1897190831 | J124: 0.2867896616 | K124: 0.1985875431 | L124: 0.1360071262 | M124: 0.212842
A125: SEVERN POWER | B125: CCGT_CHP | C125: Actual | D125: Actual | E125: Actual | F125: Actual | G125: Actual | H125: 0.3241629682 | I125: 0.2463540706 | J125: 0.1832264994 | K125: 0.644245872 | L125: 0.5569199537 | M125: 0.375812
A126: SHERINGHAM SHOAL | B126: Offshore_Wind | C126: Actual | D126: Actual | E126: Actual | F126: Actual | G126: Actual | H126: 0.4935167272 | I126: 0.4622855965 | J126: 0.5361838032 | K126: 0.4697154055 | L126: 0.5430714757 | M126: 0.499805
A127: SHOREHAM | B127: CCGT_CHP | C127: Actual | D127: Actual | E127: Actual | F127: Actual | G127: Actual | H127: 0.2075011494 | I127: 0.1022390237 | J127: 0.4895135273 | K127: 0.6898628895 | L127: 0.6429941504 | M127: 0.44667
A128: SIZEWELL B | B128: Nuclear | C128: Actual | D128: Actual | E128: Actual | F128: Actual | G128: Actual | H128: 0.8250506192 | I128: 0.8479240813 | J128: 0.9878256433 | K128: 0.8163585306 | L128: 0.733708261 | M128: 0.829778
A129: SLOY G2 & G3 | B129: Hydro | C129: Actual | D129: Actual | E129: Actual | F129: Actual | G129: Actual | H129: 0.1434708619 | I129: 0.1559413385 | J129: 0.1394388661 | K129: 0.08178171946 | L129: 0.1203030679 | M129: 0.134404
A130: SOUTH HUMBER BANK | B130: CCGT_CHP | C130: Actual | D130: Actual | E130: Actual | F130: Actual | G130: Actual | H130: 0.2433725374 | I130: 0.3446725632 | J130: 0.486753363 | K130: 0.5534194309 | L130: 0.346174226 | M130: 0.392533
A131: SPALDING | B131: CCGT_CHP | C131: Actual | D131: Actual | E131: Actual | F131: Actual | G131: Actual | H131: 0.3347996591 | I131: 0.3930919949 | J131: 0.4794074529 | K131: 0.6097475506 | L131: 0.529683071 | M131: 0.467394
A132: STAYTHORPE | B132: CCGT_CHP | C132: Actual | D132: Actual | E132: Actual | F132: Actual | G132: Actual | H132: 0.3762160886 | I132: 0.5661480523 | J132: 0.6944216016 | K132: 0.657790938 | L132: 0.5207014736 | M132: 0.581547
A133: STRATHY NORTH & SOUTH | B133: Onshore_Wind | C133: Generic | D133: Generic | E133: Partial | F133: Actual | G133: Actual | H133: 0 | I133: 0 | J133: 0.4963399751 | K133: 0.3619872362 | L133: 0.4023128394 | M133: 0.420213
A134: STRONELAIRG | B134: Onshore_Wind | C134: Generic | D134: Generic | E134: Generic | F134: Generic | G134: Partial | H134: 0 | I134: 0 | J134: 0 | K134: 0 | L134: 0.3753655317 | M134: 0.381517
A135: SUTTON BRIDGE | B135: CCGT_CHP | C135: Actual | D135: Actual | E135: Actual | F135: Actual | G135: Actual | H135: 0.09412352978 | I135: 0.1720249079 | J135: 0.1319992405 | K135: 0.3801840254 | L135: 0.2918776639 | M135: 0.198634
A136: TAYLORS LANE | B136: Gas_Oil | C136: Actual | D136: Actual | E136: Actual | F136: Actual | G136: Actual | H136: 0.0004826365107 | I136: 0.0006404823059 | J136: 0.001707707195 | K136: 0.00804706843 | L136: 0.01171229417 | M136: 0.003465
A137: THANET | B137: Offshore_Wind | C137: Actual | D137: Actual | E137: Actual | F137: Actual | G137: Actual | H137: 0.3974886115 | I137: 0.3559347333 | J137: 0.4134335849 | K137: 0.3371323577 | L137: 0.3850691967 | M137: 0.379498
A138: TODDLEBURN | B138: Onshore_Wind | C138: Actual | D138: Actual | E138: Actual | F138: Actual | G138: Actual | H138: 0.3953738543 | I138: 0.3372111252 | J138: 0.3508232483 | K138: 0.3134354196 | L138: 0.3801581464 | M138: 0.356064
A139: TORNESS | B139: Nuclear | C139: Actual | D139: Actual | E139: Actual | F139: Actual | G139: Actual | H139: 0.8646694417 | I139: 0.9149454321 | J139: 0.8577251349 | K139: 0.9799422936 | L139: 0.8644130342 | M139: 0.881343
A140: USKMOUTH | B140: Coal | C140: Actual | D140: Partial | E140: Actual | F140: Actual | G140: Actual | H140: 0.3898988396 | I140: 0.4694284272 | J140: 0.2551839866 | K140: 0.2433043505 | L140: 0.0009996773873 | M140: 0.296129
A141: WALNEY 4 | B141: Offshore_Wind | C141: Generic | D141: Generic | E141: Generic | F141: Generic | G141: Partial | H141: 0 | I141: 0 | J141: 0 | K141: 0 | L141: 0.4520329758 | M141: 0.481024
A142: WALNEY I | B142: Offshore_Wind | C142: Actual | D142: Actual | E142: Actual | F142: Actual | G142: Actual | H142: 0.5770464079 | I142: 0.5205550115 | J142: 0.5075348054 | K142: 0.4746168072 | L142: 0.5594716544 | M142: 0.529187
A143: WALNEY II | B143: Offshore_Wind | C143: Actual | D143: Actual | E143: Actual | F143: Actual | G143: Actual | H143: 0.6192190206 | I143: 0.5823549218 | J143: 0.3579876161 | K143: 0.5497270774 | L143: 0.628289775 | M143: 0.583767
A144: WALNEY III | B144: Offshore_Wind | C144: Generic | D144: Generic | E144: Generic | F144: Generic | G144: Partial | H144: 0 | I144: 0 | J144: 0 | K144: 0 | L144: 0.5017620065 | M144: 0.4976
A145: WEST BURTON | B145: Coal | C145: Actual | D145: Actual | E145: Actual | F145: Actual | G145: Actual | H145: 0.6891758728 | I145: 0.6153640203 | J145: 0.3273250677 | K145: 0.1010710748 | L145: 0.118198605 | M145: 0.353629
A146: WEST BURTON B | B146: CCGT_CHP | C146: Actual | D146: Actual | E146: Actual | F146: Actual | G146: Actual | H146: 0.3030211879 | I146: 0.4684208601 | J146: 0.5934768525 | K146: 0.5428779464 | L146: 0.6324200128 | M146: 0.534925
A147: WEST OF DUDDON SANDS | B147: Offshore_Wind | C147: Partial | D147: Actual | E147: Actual | F147: Actual | G147: Actual | H147: 0.4048096443 | I147: 0.4005057185 | J147: 0.4875397471 | K147: 0.4876906805 | L147: 0.5540340607 | M147: 0.509755
A148: WESTERMOST ROUGH | B148: Offshore_Wind | C148: Generic | D148: Partial | E148: Actual | F148: Actual | G148: Actual | H148: 0 | I148: 0.2628995643 | J148: 0.5480139128 | K148: 0.5810610725 | L148: 0.6347402266 | M148: 0.587938
A149: WHITELEE | B149: Onshore_Wind | C149: Actual | D149: Actual | E149: Actual | F149: Actual | G149: Actual | H149: 0.3510740981 | I149: 0.2981046467 | J149: 0.3187733177 | K149: 0.2728928378 | L149: 0.2963357583 | M149: 0.304405
A150: WHITELEE EXTENSION | B150: Onshore_Wind | C150: Actual | D150: Actual | E150: Actual | F150: Actual | G150: Actual | H150: 0.2701019099 | I150: 0.2777866594 | J150: 0.2676548491 | K150: 0.2352527425 | L150: 0.2516644983 | M150: 0.26314
A151: WHITESIDE HILL | B151: Onshore_Wind | C151: Generic | D151: Generic | E151: Generic | F151: Generic | G151: Partial | H151: 0 | I151: 0 | J151: 0 | K151: 0 | L151: 0.3837039536 | M151: 0.384297
A152: WILTON | B152: CCGT_CHP | C152: Actual | D152: Actual | E152: Actual | F152: Actual | G152: Actual | H152: 0.04494087565 | I152: 0.2158667001 | J152: 0.1613791697 | K152: 0.144129886 | L152: 0.1557497612 | M152: 0.153753
A153: WINDY STANDARD II | B153: Onshore_Wind | C153: Generic | D153: Generic | E153: Generic | F153: Generic | G153: Partial | H153: 0 | I153: 0 | J153: 0 | K153: 0 | L153: 0.4329812635 | M153: 0.400722

Sheet TCC
A1: Table CC - Generic Annual Load Factors | E1: Return to Index
A4: Technology | B4: Generic ALF
A5: Biomass | B5: 0.268847
A6: CCGT_CHP | B6: 0.486379
A7: Coal | B7: 0.376162
A8: Gas_Oil | B8: 0.002715
A9: Hydro | B9: 0.424165
A10: Nuclear | B10: 0.763178
A11: Offshore_Wind | B11: 0.495519
A12: Onshore_Wind | B12: 0.384593
A13: Pumped_Storage | B13: 0.106826
A14: Tidal | B14: 0.189
A15: Wave | B15: 0.31

Sheet TDD
A1: Table DD - Generation Contracted TEC Changes | E1: Return to Index
A4: Power Station | B4: MW Change | C4: Node | D4: Generation Zone
A5: Auchencrosh (interconnector CCT) | B5: 227 | C5: AUCH20 | D5: 10
A6: Carnedd Wen Wind Farm | B6: -150 | C6: TRAW40 | D6: 18
A7: CDCL | B7: 50 | C7: COTT40 | D7: 16
A8: Crookedstane Windfarm | B8: -26.8 | C8: CLYS2R | D8: 11
A9: Eggborough | B9: -1870 | C9: EGGB40 | D9: 15
A10: Holyhead | B10: -210 | C10: WYLF40 | D10: 19
A11: Marex | B11: -1500 | C11: CONQ40 | D11: 16
A12: Millennium South | B12: -25 | C12: MILS1Q | D12: 3
A13: Pogbie Wind Farm | B13: -2.2 | C13: DUNE10 | D13: 11
A14: Robin Rigg East Offshore Wind Farm | B14: 6 | C14: HARK40 | D14: 12
A15: Spalding | B15: 70 | C15: SPLN40 | D15: 17
A16: Spalding Energy Expansion | B16: -0.01 | C16: SPLN40 | D16: 17
A17: Whitson Substation | B17: 49.9 | C17: WHSO20 | D17: 21

Sheet TEE
A1: Table EE - Indicative National Grid Revenue Forecast | I1: Return to Index
A4: Description | I4: Notes
A5: Regulatory Year | C5: Licence Term | D5: 2018/19 (fixed forecast) | E5: Initial Forecast | F5: April Forecast | G5: June Forecast | H5: Nov Draft
A6: Actual RPI | I6: April to March average
A7: RPI Actual | C7: RPIAt | I7: Office of National Statistics
A8: Assumed Interest Rate | C8: It | D8: 0.00705 | E8: 0.005625 | F8: 0.0116 | G8: 0.0116 | H8: 0.0109 | I8: Bank of England Base Rate
A9: Opening Base Revenue Allowance (2009/10 prices) | B9: A1 | C9: PUt | D9: 1587.627 | E9: 1585.228 | F9: 1585.228 | G9: 1585.228 | H9: 1585.228 | I9: From Licence
A10: Price Control Financial Model Iteration Adjustment | B10: A2 | C10: MODt | D10: -310.2408409 | E10: -334 | F10: -334 | G10: -334 | H10: -376.6 | I10: Forecast
A11: RPI True Up | B11: A3 | C11: TRUt | D11: -6.084594215 | E11: 3.265636418 | F11: 3.265636418 | G11: 3.265636418 | H11: 3.265914815 | I11: Forecast
A12: Prior Calendar Year RPI Forecast | C12: GRPIFc-1 | D12: 0.036 | E12: 0.035 | F12: 0.035 | G12: 0.035 | H12: 0.03325 | I12: HM Treasury Forecast
A13: Current Calendar Year RPI Forecast | C13: GRPIFc | D13: 0.034 | E13: 0.03 | F13: 0.03 | G13: 0.03 | H13: 0.03075 | I13: HM Treasury Forecast
A14: Next Calendar Year RPI forecast | C14: GRPIFc+1 | D14: 0.031 | E14: 0.03 | F14: 0.03 | G14: 0.03 | H14: 0.034 | I14: HM Treasury Forecast
A15: RPI Forecast | B15: A4 | C15: RPIFt | D15: 1.314 | E15: 1.357 | F15: 1.357 | G15: 1.357 | H15: 1.357 | I15: Using HM Treasury Forecast
A16: Base Revenue [A=(A1+A2+A3)*A4] | B16: A | C16: BRt | D16: =SUM(D9:D11)*D15 -> 1670.490256 | E16: 1702.347865 | F16: =SUM(F9:F11)*F15 -> 1702.347865 | G16: =SUM(G9:G11)*G15 -> 1702.347865 | H16: =SUM(H9:H11)*H15 -> 1644.540042
A17: Pass-Through Business Rates | B17: B1 | C17: RBt | D17: 1.563034475 | E17: 35.12526409 | F17: 0.0003830462655 | G17: 0.0003830462655 | H17: 35.14304021 | I17: Forecast
A18: Temporary Physical Disconnection | B18: B2 | C18: TPDt | D18: 0.7084275587 | E18: 0 | F18: 0 | G18: 0 | H18: 0.3691229355 | I18: Forecast
A19: Licence Fee | B19: B3 | C19: LFt | D19: -0.3766395763 | E19: 4.540533516 | F19: 0 | G19: 0 | H19: 4.307375862 | I19: Forecast
A20: Inter TSO Compensation | B20: B4 | C20: ITCt | D20: 1.344774379 | E20: 0.766092531 | F20: 0 | G20: 0 | H20: -5.242416349 | I20: Forecast
A21: Termination of Bilateral Connection Agreements | B21: B5 | C21: TERMt | D21: 0 | E21: 0 | F21: 0 | G21: 0 | H21: =G21 -> 0 | I21: Forecast
A22: SP Transmission Pass-Through | B22: B6 | C22: TSPt | D22: 349.9608532 | E22: 389.9761144 | F22: 389.9621123 | G22: 389.9621123 | H22: 383 | I22: Forecast
A23: SHE Transmission Pass-Through | B23: B7 | C23: TSHt | D23: 366.411 | E23: 349.3868271 | F23: 349.3868271 | G23: 349.3868271 | H23: 337.806136 | I23: Forecast
A24: Offshore Transmission Pass-Through | B24: B8 | C24: TOFTOt | D24: 318.1438119 | E24: 459.8616268 | F24: 386.4787867 | G24: 387.439852 | H24: 388.3861945 | I24: Forecast
A25: Embedded Offshore Pass-Through | B25: B9 | C25: OFETt | D25: 0.5498180205 | E25: 0.5673921124 | F25: 0.5678105432 | G25: 0.5678105432 | H25: 0.5673921124 | I25: Forecast
A26: Interconnectors Cap&Floor Revenue Adjustment | B26: B10 | C26: TICFt | D26: -6.8 | F26: -6.8 | G26: -6.8 | H26: -8.4 | I26: Forecast
A27: Pass-Through Items [B=B1+B2+B3+B4+B5+B6+B7+B8+B9+B10] | B27: B | C27: PTt | D27: =SUM(D17:D26) -> 1031.50508 | E27: =SUM(E17:E26) -> 1240.223851 | F27: =SUM(F17:F26) -> 1119.59592 | G27: =SUM(G17:G26) -> 1120.556985 | H27: =SUM(H17:H26) -> 1135.936845
A28: Reliability Incentive Adjustment | B28: C1 | C28: RIt | D28: 4.135796856 | E28: 4.241545547 | F28: 4.241545547 | G28: 4.241545547 | H28: 3.761565581 | I28: Forecast
A29: Stakeholder Satisfaction Adjustment | B29: C2 | C29: SSOt | D29: 9.276440124 | E29: 8.583271203 | F29: 8.616999315 | G29: 8.616999315 | H29: 7.15 | I29: Forecast
A30: Sulphur Hexafluoride (SF6) Gas Emissions Adjustment | B30: C3 | C30: SFIt | D30: 1.434066097 | E30: 1.622973998 | F30: 1.622973998 | G30: 1.622973998 | H30: 3.113346088 | I30: Forecast
A31: Outputs Incentive Revenue [C=C1+C2+C3+C4] | B31: C | C31: OIPt | D31: =SUM(D28:D30) -> 14.84630308 | E31: =SUM(E28:E30) -> 14.44779075 | F31: =SUM(F28:F30) -> 14.48151886 | G31: =SUM(G28:G30) -> 14.48151886 | H31: =SUM(H28:H30) -> 14.02491167
A32: Network Innovation Allowance | B32: D | C32: NIAt | D32: 10.52408861 | E32: 10.72479155 | F32: 10.72479155 | G32: 10.72479155 | H32: 10.36017208 | I32: Forecast
A33: Network Innovation Competition | B33: E | C33: NICFt | D33: 32.66440404 | E33: 40.5 | F33: 32.66440404 | G33: 32.66440404 | H33: 32.66440404 | I33: Forecast
A34: Future Environmental Discretionary Rewards | B34: F | C34: EDRt | D34: 0 | E34: 2 | F34: 0 | G34: 0 | H34: 0 | I34: Forecast
A35: Transmission Investment for Renewable Generation | B35: G | C35: TIRGt | D35: 0 | E35: 0 | F35: 0 | G35: 0 | H35: 0 | I35: Forecast
A36: Scottish Site Specific Adjustment | B36: H | C36: DISt | D36: 6.648 | E36: 0 | F36: 0 | G36: 0 | H36: 0 | I36: Forecast
A37: Scottish Terminations Adjustment | B37: I | C37: TSt | D37: 3.071 | E37: 0 | F37: 0 | G37: 0 | H37: 0 | I37: Forecast
A38: Correction Factor | B38: K | C38: -Kt | D38: -55.45109285 | E38: 0 | F38: 0 | G38: 42.49662099 | H38: 33.63639475 | I38: Calculated by Licensee
A39: Maximum Revenue [M= A+B+C+D+E+F+G+H+I+K] | B39: M | C39: TOt | D39: =D16+D27+D31+D32+D33+D34+D35+D36+D37+D38 -> 2714.298039 | E39: =E16+E27+E32+E33+E34+E35+E36+E37+E38+E31 -> 3010.244297 | F39: =F16+F27+F31+F32+F33+F34+F35+F36+F37+F38 -> 2879.814499 | G39: =G16+G27+G31+G32+G33+G34+G35+G36+G37+G38 -> 2923.272185 | H39: =H16+H27+H31+H32+H33+H34+H35+H36+H37+H38 -> 2871.16277
A40: Pre-vesting connection charges | B40: P | D40: 44.002401 | E40: 41.8826124 | F40: 44.002401 | G40: 44.002401 | H40: =31.61 -> 31.61 | I40: Forecast
A41: TNUoS Collected Revenue [T=M-B5-P] | B41: T | D41: =D39-D40 -> 2670.295638 | E41: =E39-E40 -> 2968.361685 | F41: =F39-F40 -> 2835.812098 | G41: =G39-G40 -> 2879.269784 | H41: =H39-H40 -> 2839.55277
A43: Notes:

Sheet TFF
A1: Table FF - Offshore Revenues | H1: Return to Index
A3: Offshore Transmission Revenue Forecast (£m) | B3: 2018-11-23
H4: Notes
A5: Regulatory Year | B5: 2014/15 | C5: 2015/16 | D5: 2016/17 | E5: 2017/18 | F5: 2018/19 | G5: 2019/20
A6: Barrow | B6: 5.475948387 | C6: 5.605119166 | D6: 5.656283019 | E6: 5.872496367 | F6: 6.250052539 | G6: 6.441539674 | H6: Current revenues plus indexation
A7: Gunfleet | B7: 6.853152423 | C7: 7.014459018 | D7: 7.080594599 | E7: 7.432422281 | F7: 7.801752691 | G7: 8.08602363 | H7: Current revenues plus indexation
A8: Walney 1 | B8: 12.49105951 | C8: 12.78636456 | D8: 12.90184157 | E8: 13.13609825 | F8: 13.60716746 | G8: 14.67256462 | H8: Current revenues plus indexation
A9: Robin Rigg | B9: 7.709472064 | C9: 7.891440662 | D9: 7.993308366 | E9: 8.367306563 | F9: 8.748852974 | G9: 9.130315762 | H9: Current revenues plus indexation
A10: Walney 2 | B10: 12.92696073 | C10: 13.23221075 | D10: 12.51589741 | E10: 12.29931316 | F10: 16.32580671 | G10: 14.55396623 | H10: Current revenues plus indexation
A11: Sheringham Shoal | B11: 18.92412411 | C11: 19.49893387 | D11: 19.72766462 | E11: 20.02531234 | F11: 20.74277833 | G11: 21.43224897 | H11: Current revenues plus indexation
A12: Ormonde | B12: 11.57050189 | C12: 11.84309117 | D12: 11.95215008 | E12: 12.15604428 | F12: 12.59369632 | G12: 13.55979441 | H12: Current revenues plus indexation
A13: Greater Gabbard | B13: 25.9995199 | C13: 26.61925023 | D13: 26.87143257 | E13: 27.3092326 | F13: 28.3875676 | G13: 29.33066517 | H13: Current revenues plus indexation
A14: London Array | B14: 37.57295282 | C14: 39.2120985 | D14: 39.49870272 | E14: 39.51888334 | F14: 41.77261774 | G14: 43.16370487 | H14: Current revenues plus indexation
A15: Thanet | B15: 78.85668167 | C15: 17.51705273 | D15: 15.69984448 | E15: 19.5121928 | F15: 18.62320211 | G15: 19.18077525 | H15: Current revenues plus indexation
A16: Lincs | C16: 25.56339384 | D16: 26.68704214 | E16: 27.18814554 | F16: 28.16936445 | G16: 28.99571181 | H16: Current revenues plus indexation
A17: Gwynt y mor | C17: 26.28358513 | D17: 23.6461166 | E17: 29.34287447 | F17: 32.73080929 | G17: 33.98287135 | H17: Current revenues plus indexation
A18: West of Duddon Sands | C18: 35.2899996 | D18: 21.27389291 | E18: 22.04538798 | F18: 22.57265006 | G18: 22.65742853 | H18: Current revenues plus indexation
A19: Humber Gateway | D19: 29.28454151 | E19: 9.749899087 | F19: 12.14541511 | G19: 12.26052261 | H19: Current revenues plus indexation
A20: Westermost Rough | E20: 11.57669261 | F20: 13.19733993 | G20: 13.50311701 | H20: Current revenues plus indexation
A21: Burbo Bank | F21: 34.27592625 | G21: 13.03259908 | H21: Current revenues plus indexation
A22: Dudgeon | G22: 84.40234554 | H22: National Grid Forecast
A23: Forecast to asset transfer to OFTO in 2019/20 | H23: National Grid Forecast
A24: Offshore Transmission Pass-Through (B7) | B24: =SUM(B6:B23) -> 218.3803735 | C24: 248.3569992 | D24: 260.7893126 | E24: 265.5323017 | F24: 317.9449996 | G24: 388.3861945
A27: Notes:
A28: Figures for historic years represent National Grid's forecast of OFTO revenues at the time final tariffs were calculated for each charging year rather than our current best view.
A29: Licensee forecasts and budgets are subject to change especially where they are influenced by external stakeholders
A30: Greyed out cells are either calculated or not applicable in the year concerned due to the way the licence formula are constructed
A31: NIC payments are not included as they do not form part of OFTO Maximum Revenue
